{"text_format":"1","workbook":"xlsx","n_sheets":12,"sheets":["ANA SAYFA","SINIF LİSTESİ","NOT","TEST","DENEME SINAVI","ÖDEV","DERSE KATILIM","DAVRANIŞ","ÖĞRENCİ GELİŞİMİ","Sayfa1","ÖĞRENCİ SIRALA","ogrencitakip.4t.com"],"not_rendered":{"charts":6,"images":21,"macros":1,"external_links":0,"defined_names":0,"comments":0,"pivot_tables":0},"unopened":[],"bounds":{"document_bytes":16777216,"sheet_cells":100000,"rows_first":2000,"rows_last":500,"rows_between":2000,"halvings":0,"cell_chars":16384,"cell_head_chars":4096},"cells_cut":0,"cells_raw":0,"read":"whole","date_system":"1900"}

{"sheet":"ANA SAYFA","index":0,"n_rows":26,"n_cols":7,"rows_kept":26,"cut":false,"hidden":false,"merged":[[3,1,3,4],[23,8,23,13],[22,8,22,13],[24,8,24,13]]}
[]
[]
[null,null,"Yukarıdaki GÜVENLİK UYARISI nın yanındaki \"SEÇENEKLER\" yazısına basarak \"Bu içeriği etkinleştir\" seçeneğini işaretleyip tamam deyin."]
[null,"BİLGİ GİRİŞİ BUTONLARI"]
[null,null,null,null,null,null,"NOT:"]
[null,null,null,null,null,null,"1) Bu program sadece bir sınıf için hazırlanmıştır. Birden çok sınıfa uygulamak için belgeyi farklı kaydedip,"]
[null,null,null,null,null,null,"hangi sınıf için kullanmak istiyorsanız o sınıfın adı ile kaydedin"]
[null,null,null,null,null,null,"2)Programı kullanırken ilk olarak aşağıdaki kırmızı butona basarak sınıf listesini oluşturun. Oluşturduğunuz sınıf listesi "]
[null,null,null,null,null,null,"diğer sayfalarda gözükecektir."]
[null,null,null,null,null,null,"3)Bu program öğrencilerinizin bireysel gelişiminin süreç içerisinde nasıl değiştiğini anlamanız(anlamamız) için "]
[null,null,null,null,null,null,"hazırlanmıştır."]
[null,null,null,null,null,null,"4)Öğrenci gelişimini \"ÖĞRENCİ GELİŞİMİ\" sayfasından gözlemleyebilirsiniz."]
[null,null,null,null,null,null,"5)Ödev , Davranış ve Derse katılım takibini iyi öğrencilerden birine verilen bir liste ile takip ettirebilir , sonra bu liste toplu olarak"]
[null,null,null,null,null,null,"bu programa kaydedilebilir."]
[null,null,null,null,null,null,"6)Programı hazırlamadaki nihayi amacım , öğrencinin olumlu veya olumsuz gidişatını görüp ona göre tedbirler almak veya ona göre"]
[null,null,null,null,null,null,"(öğrencinin olumsuz gidişatı varsa) sorunun kaynağına ulaşmaktır."]
[]
[]
[]
[]
[]
[]
[]
[]
[]
[null,"Sınıf listesi oluşturmayı unutmayın"]

{"sheet":"SINIF LİSTESİ","index":1,"n_rows":33,"n_cols":2,"rows_kept":33,"cut":false,"hidden":false,"merged":[]}
[]
["NO","ADI SOYADI"]
[91,"ENES"]
[126,"BİLAL"]
[169,"YASİN"]
[170,"YİĞİT"]
[206,"DİLAN"]
[219,"AHSEN"]
[234,"NEHİR"]
[317,"MERYEM"]
[319,"NEHİR"]
[331,"YUNUS"]
[359,"ELİF"]
[383,"FURKAN"]
[386,"MEDİHA"]
[420,"BERTAN"]
[430,"CİHANNUR"]
[459,"AZİZ"]
[462,"HÜMEYSANUR"]
[517,"HAYRUNNİSA"]
[542,"NİMETULLAH"]
[544,"AYCAN"]
[558,"ELİF"]
[585,"AHMET"]
[604,"AZAM"]
[644,"DEMETNUR"]
[696,"ELİF"]
[716,"ERKAN"]
[933,"NİSA"]
[5000,"ASUDE"]
[5001,"SONGÜL"]
[5023,"TUANA"]
[5606,"BERAT"]

{"sheet":"NOT","index":2,"n_rows":47,"n_cols":19,"rows_kept":47,"cut":false,"hidden":false,"merged":[[0,10,0,16],[0,17,1,17],[0,18,1,18],[0,2,0,8],[0,9,1,9]]}
[null,null,"1.DÖNEM",null,null,null,null,null,null,"1.DÖNEM ORTALAMA","2.DÖNEM",null,null,null,null,null,null,"2.DÖNEM ORTALAMA","YIL SONU ORT"]
[{"$f":"'SINIF LİSTESİ'!A2","v":"NO"},{"$f":"'SINIF LİSTESİ'!B2","v":"ADI SOYADI"},"Y1","Y2","P1","P2","DİE1","DİE2","DİE3",null,"Y1","Y2","P1","P2","DİE1","DİE2","DİE3"]
[{"$f":"'SINIF LİSTESİ'!A3","v":91},{"$f":"'SINIF LİSTESİ'!B3","v":"ENES"},30,56,100,100,100,100,100,{"$f":"SUM(AVERAGE(AVERAGE(E3:F3)+AVERAGE(G3:I3))/2+C3+D3)/3","v":62},30,56,44,null,50,null,null,{"$f":"SUM(AVERAGE(AVERAGE(M3:N3)+AVERAGE(O3:Q3))/2+K3+L3)/3","v":44.333333333333336},{"$f":"(J3+R3)/2","v":53.166666666666671}]
[{"$f":"'SINIF LİSTESİ'!A4","v":126},{"$f":"'SINIF LİSTESİ'!B4","v":"BİLAL"},55,67,78,100,100,null,100,{"$f":"SUM(AVERAGE(AVERAGE(E4:F4)+AVERAGE(G4:I4))/2+C4+D4)/3","v":72.166666666666671},55,67,78,null,null,null,null,{"$f":"SUM(AVERAGE(AVERAGE(M4:N4)+AVERAGE(O4:Q4))/2+K4+L4)/3","v":{"$error":"#DIV/0!"}},{"$f":"(J4+R4)/2","v":{"$error":"#DIV/0!"}}]
[{"$f":"'SINIF LİSTESİ'!A5","v":169},{"$f":"'SINIF LİSTESİ'!B5","v":"YASİN"},33,78,99,null,20,null,null,56.833333333333336,33,78,99,null,null,null,null,{"$error":"#DIV/0!"},{"$error":"#DIV/0!"}]
[{"$f":"'SINIF LİSTESİ'!A6","v":170},{"$f":"'SINIF LİSTESİ'!B6","v":"YİĞİT"},50,50,50,null,null,null,null,{"$error":"#DIV/0!"},50,50,50,null,null,null,null,{"$error":"#DIV/0!"},{"$error":"#DIV/0!"}]
[{"$f":"'SINIF LİSTESİ'!A7","v":206},{"$f":"'SINIF LİSTESİ'!B7","v":"DİLAN"},90,90,90,null,null,null,null,{"$error":"#DIV/0!"},90,90,90,null,null,null,null,{"$error":"#DIV/0!"},{"$error":"#DIV/0!"}]
[{"$f":"'SINIF LİSTESİ'!A8","v":219},{"$f":"'SINIF LİSTESİ'!B8","v":"AHSEN"},34,45,56,null,null,null,null,{"$error":"#DIV/0!"},34,45,56,null,null,null,null,{"$error":"#DIV/0!"},{"$error":"#DIV/0!"}]
[{"$f":"'SINIF LİSTESİ'!A9","v":234},{"$f":"'SINIF LİSTESİ'!B9","v":"NEHİR"},89,45,34,null,null,null,null,{"$error":"#DIV/0!"},89,45,34,null,null,null,null,{"$error":"#DIV/0!"},{"$error":"#DIV/0!"}]
[{"$f":"'SINIF LİSTESİ'!A10","v":317},{"$f":"'SINIF LİSTESİ'!B10","v":"MERYEM"},34,66,77,null,null,null,null,{"$error":"#DIV/0!"},34,66,77,null,null,null,null,{"$error":"#DIV/0!"},{"$error":"#DIV/0!"}]
[{"$f":"'SINIF LİSTESİ'!A11","v":319},{"$f":"'SINIF LİSTESİ'!B11","v":"NEHİR"},34,55,66,null,null,null,null,{"$error":"#DIV/0!"},34,55,66,null,null,null,null,{"$error":"#DIV/0!"},{"$error":"#DIV/0!"}]
[{"$f":"'SINIF LİSTESİ'!A12","v":331},{"$f":"'SINIF LİSTESİ'!B12","v":"YUNUS"},null,null,null,null,null,null,null,{"$error":"#DIV/0!"},null,null,null,null,null,null,null,{"$error":"#DIV/0!"},{"$error":"#DIV/0!"}]
[{"$f":"'SINIF LİSTESİ'!A13","v":359},{"$f":"'SINIF LİSTESİ'!B13","v":"ELİF"},null,null,null,null,null,null,null,{"$f":"SUM(AVERAGE(AVERAGE(E13:F13)+AVERAGE(G13:I13))/2+C13+D13)/3","v":{"$error":"#DIV/0!"}},null,null,null,null,null,null,null,{"$error":"#DIV/0!"},{"$error":"#DIV/0!"}]
[{"$f":"'SINIF LİSTESİ'!A14","v":383},{"$f":"'SINIF LİSTESİ'!B14","v":"FURKAN"},null,null,null,null,null,null,null,{"$error":"#DIV/0!"},null,null,null,null,null,null,null,{"$error":"#DIV/0!"},{"$error":"#DIV/0!"}]
[{"$f":"'SINIF LİSTESİ'!A15","v":386},{"$f":"'SINIF LİSTESİ'!B15","v":"MEDİHA"},null,null,null,null,null,null,null,{"$error":"#DIV/0!"},null,null,null,null,null,null,null,{"$error":"#DIV/0!"},{"$error":"#DIV/0!"}]
[{"$f":"'SINIF LİSTESİ'!A16","v":420},{"$f":"'SINIF LİSTESİ'!B16","v":"BERTAN"},null,null,null,null,null,null,null,{"$error":"#DIV/0!"},null,null,null,null,null,null,null,{"$error":"#DIV/0!"},{"$error":"#DIV/0!"}]
[{"$f":"'SINIF LİSTESİ'!A17","v":430},{"$f":"'SINIF LİSTESİ'!B17","v":"CİHANNUR"},null,null,null,null,null,null,null,{"$error":"#DIV/0!"},null,null,null,null,null,null,null,{"$error":"#DIV/0!"},{"$error":"#DIV/0!"}]
[{"$f":"'SINIF LİSTESİ'!A18","v":459},{"$f":"'SINIF LİSTESİ'!B18","v":"AZİZ"},null,null,null,null,null,null,null,{"$error":"#DIV/0!"},null,null,null,null,null,null,null,{"$error":"#DIV/0!"},{"$error":"#DIV/0!"}]
[{"$f":"'SINIF LİSTESİ'!A19","v":462},{"$f":"'SINIF LİSTESİ'!B19","v":"HÜMEYSANUR"},null,null,null,null,null,null,null,{"$error":"#DIV/0!"},null,null,null,null,null,null,null,{"$error":"#DIV/0!"},{"$error":"#DIV/0!"}]
[{"$f":"'SINIF LİSTESİ'!A20","v":517},{"$f":"'SINIF LİSTESİ'!B20","v":"HAYRUNNİSA"},null,null,null,null,null,null,null,{"$error":"#DIV/0!"},null,null,null,null,null,null,null,{"$error":"#DIV/0!"},{"$error":"#DIV/0!"}]
[{"$f":"'SINIF LİSTESİ'!A21","v":542},{"$f":"'SINIF LİSTESİ'!B21","v":"NİMETULLAH"},null,null,null,null,null,null,null,{"$error":"#DIV/0!"},null,null,null,null,null,null,null,{"$error":"#DIV/0!"},{"$error":"#DIV/0!"}]
[{"$f":"'SINIF LİSTESİ'!A22","v":544},{"$f":"'SINIF LİSTESİ'!B22","v":"AYCAN"},null,null,null,null,null,null,null,{"$error":"#DIV/0!"},null,null,null,null,null,null,null,{"$error":"#DIV/0!"},{"$error":"#DIV/0!"}]
[{"$f":"'SINIF LİSTESİ'!A23","v":558},{"$f":"'SINIF LİSTESİ'!B23","v":"ELİF"},null,null,null,null,null,null,null,{"$error":"#DIV/0!"},null,null,null,null,null,null,null,{"$error":"#DIV/0!"},{"$error":"#DIV/0!"}]
[{"$f":"'SINIF LİSTESİ'!A24","v":585},{"$f":"'SINIF LİSTESİ'!B24","v":"AHMET"},null,null,null,null,null,null,null,{"$error":"#DIV/0!"},null,null,null,null,null,null,null,{"$error":"#DIV/0!"},{"$error":"#DIV/0!"}]
[{"$f":"'SINIF LİSTESİ'!A25","v":604},{"$f":"'SINIF LİSTESİ'!B25","v":"AZAM"},null,null,null,null,null,null,null,{"$error":"#DIV/0!"},null,null,null,null,null,null,null,{"$error":"#DIV/0!"},{"$error":"#DIV/0!"}]
[{"$f":"'SINIF LİSTESİ'!A26","v":644},{"$f":"'SINIF LİSTESİ'!B26","v":"DEMETNUR"},null,null,null,null,null,null,null,{"$error":"#DIV/0!"},null,null,null,null,null,null,null,{"$error":"#DIV/0!"},{"$error":"#DIV/0!"}]
[{"$f":"'SINIF LİSTESİ'!A27","v":696},{"$f":"'SINIF LİSTESİ'!B27","v":"ELİF"},null,null,null,null,null,null,null,{"$error":"#DIV/0!"},null,null,null,null,null,null,null,{"$error":"#DIV/0!"},{"$error":"#DIV/0!"}]
[{"$f":"'SINIF LİSTESİ'!A28","v":716},{"$f":"'SINIF LİSTESİ'!B28","v":"ERKAN"},null,null,null,null,null,null,null,{"$error":"#DIV/0!"},null,null,null,null,null,null,null,{"$error":"#DIV/0!"},{"$error":"#DIV/0!"}]
[{"$f":"'SINIF LİSTESİ'!A29","v":933},{"$f":"'SINIF LİSTESİ'!B29","v":"NİSA"},null,null,null,null,null,null,null,{"$error":"#DIV/0!"},null,null,null,null,null,null,null,{"$error":"#DIV/0!"},{"$error":"#DIV/0!"}]
[{"$f":"'SINIF LİSTESİ'!A30","v":5000},{"$f":"'SINIF LİSTESİ'!B30","v":"ASUDE"},null,null,null,null,null,null,null,{"$error":"#DIV/0!"},null,null,null,null,null,null,null,{"$error":"#DIV/0!"},{"$error":"#DIV/0!"}]
[{"$f":"'SINIF LİSTESİ'!A31","v":5001},{"$f":"'SINIF LİSTESİ'!B31","v":"SONGÜL"},null,null,null,null,null,null,null,{"$error":"#DIV/0!"},null,null,null,null,null,null,null,{"$error":"#DIV/0!"},{"$error":"#DIV/0!"}]
[{"$f":"'SINIF LİSTESİ'!A32","v":5023},{"$f":"'SINIF LİSTESİ'!B32","v":"TUANA"},null,null,null,null,null,null,null,{"$error":"#DIV/0!"},null,null,null,null,null,null,null,{"$error":"#DIV/0!"},{"$error":"#DIV/0!"}]
[{"$f":"'SINIF LİSTESİ'!A33","v":5606},{"$f":"'SINIF LİSTESİ'!B33","v":"BERAT"},null,null,null,null,null,null,null,{"$error":"#DIV/0!"},null,null,null,null,null,null,null,{"$error":"#DIV/0!"},{"$error":"#DIV/0!"}]
[{"$f":"'SINIF LİSTESİ'!A34","v":0},{"$f":"'SINIF LİSTESİ'!B34","v":0},null,null,null,null,null,null,null,{"$error":"#DIV/0!"},null,null,null,null,null,null,null,{"$error":"#DIV/0!"},{"$error":"#DIV/0!"}]
[{"$f":"'SINIF LİSTESİ'!A35","v":0},{"$f":"'SINIF LİSTESİ'!B35","v":0},null,null,null,null,null,null,null,{"$error":"#DIV/0!"},null,null,null,null,null,null,null,{"$error":"#DIV/0!"},{"$error":"#DIV/0!"}]
[{"$f":"'SINIF LİSTESİ'!A36","v":0},{"$f":"'SINIF LİSTESİ'!B36","v":0},null,null,null,null,null,null,null,{"$error":"#DIV/0!"},null,null,null,null,null,null,null,{"$error":"#DIV/0!"},{"$error":"#DIV/0!"}]
[{"$f":"'SINIF LİSTESİ'!A37","v":0},{"$f":"'SINIF LİSTESİ'!B37","v":0},null,null,null,null,null,null,null,{"$error":"#DIV/0!"},null,null,null,null,null,null,null,{"$error":"#DIV/0!"},{"$error":"#DIV/0!"}]
[{"$f":"'SINIF LİSTESİ'!A38","v":0},{"$f":"'SINIF LİSTESİ'!B38","v":0},null,null,null,null,null,null,null,{"$error":"#DIV/0!"},null,null,null,null,null,null,null,{"$error":"#DIV/0!"},{"$error":"#DIV/0!"}]
[{"$f":"'SINIF LİSTESİ'!A39","v":0},{"$f":"'SINIF LİSTESİ'!B39","v":0},null,null,null,null,null,null,null,{"$error":"#DIV/0!"},null,null,null,null,null,null,null,{"$error":"#DIV/0!"},{"$error":"#DIV/0!"}]
[{"$f":"'SINIF LİSTESİ'!A40","v":0},{"$f":"'SINIF LİSTESİ'!B40","v":0},null,null,null,null,null,null,null,{"$error":"#DIV/0!"},null,null,null,null,null,null,null,{"$error":"#DIV/0!"},{"$error":"#DIV/0!"}]
[{"$f":"'SINIF LİSTESİ'!A41","v":0},{"$f":"'SINIF LİSTESİ'!B41","v":0},null,null,null,null,null,null,null,{"$error":"#DIV/0!"},null,null,null,null,null,null,null,{"$error":"#DIV/0!"},{"$error":"#DIV/0!"}]
[{"$f":"'SINIF LİSTESİ'!A42","v":0},{"$f":"'SINIF LİSTESİ'!B42","v":0},null,null,null,null,null,null,null,{"$error":"#DIV/0!"},null,null,null,null,null,null,null,{"$error":"#DIV/0!"},{"$error":"#DIV/0!"}]
[{"$f":"'SINIF LİSTESİ'!A43","v":0},{"$f":"'SINIF LİSTESİ'!B43","v":0},null,null,null,null,null,null,null,{"$error":"#DIV/0!"},null,null,null,null,null,null,null,{"$error":"#DIV/0!"},{"$error":"#DIV/0!"}]
[{"$f":"'SINIF LİSTESİ'!A44","v":0},{"$f":"'SINIF LİSTESİ'!B44","v":0},null,null,null,null,null,null,null,{"$error":"#DIV/0!"},null,null,null,null,null,null,null,{"$error":"#DIV/0!"},{"$error":"#DIV/0!"}]
[{"$f":"'SINIF LİSTESİ'!A45","v":0},{"$f":"'SINIF LİSTESİ'!B45","v":0},null,null,null,null,null,null,null,{"$error":"#DIV/0!"},null,null,null,null,null,null,null,{"$error":"#DIV/0!"},{"$error":"#DIV/0!"}]
[{"$f":"'SINIF LİSTESİ'!A46","v":0},{"$f":"'SINIF LİSTESİ'!B46","v":0},null,null,null,null,null,null,null,{"$error":"#DIV/0!"},null,null,null,null,null,null,null,{"$error":"#DIV/0!"},{"$error":"#DIV/0!"}]
[{"$f":"'SINIF LİSTESİ'!A47","v":0},{"$f":"'SINIF LİSTESİ'!B47","v":0},null,null,null,null,null,null,null,{"$error":"#DIV/0!"},null,null,null,null,null,null,null,{"$error":"#DIV/0!"},{"$error":"#DIV/0!"}]

{"sheet":"TEST","index":3,"n_rows":30,"n_cols":18,"rows_kept":30,"cut":false,"hidden":false,"merged":[]}
["Not:","100 üzerinden değerlendirilecek, yanlışlar sayılmayacak (Örnek 20 soruda 10 doğrusu varsa testten 50 almış olacak)"]
[{"$f":"'SINIF LİSTESİ'!A2","v":"NO"},{"$f":"'SINIF LİSTESİ'!B2","v":"ADI SOYADI"},"TEST1","TEST2","TEST3","TEST4","TEST5","TEST6","TEST7","TEST8","TEST9","TEST10","TEST11","TEST12","TEST13","TEST14","TEST15"]
[{"$f":"'SINIF LİSTESİ'!A3","v":91},{"$f":"'SINIF LİSTESİ'!B3","v":"ENES"},40,50,60,70,55,40,25,10,30,50,70,90,100,70,60,{"$f":"IF(C3<>\"\",AVERAGE(C3:Q3),\"\")","v":54.666666666666664}]
[{"$f":"'SINIF LİSTESİ'!A4","v":126},{"$f":"'SINIF LİSTESİ'!B4","v":"BİLAL"},50,50,50,50,50,50,50,50,50,50,50,50,50,50,50,{"$f":"IF(C4<>\"\",AVERAGE(C4:Q4),\"\")","v":50}]
[{"$f":"'SINIF LİSTESİ'!A5","v":169},{"$f":"'SINIF LİSTESİ'!B5","v":"YASİN"},70,75,80,85,90,80,70,60,50,40,90,95,97,90,80,76.8]
[{"$f":"'SINIF LİSTESİ'!A6","v":170},{"$f":"'SINIF LİSTESİ'!B6","v":"YİĞİT"},0,0,0,0,0,0,0,0,0,0,0,0,0,0,0,0]
[{"$f":"'SINIF LİSTESİ'!A7","v":206},{"$f":"'SINIF LİSTESİ'!B7","v":"DİLAN"},5,5,5,5,5,5,5,5,5,5,5,5,5,5,5,5]
[{"$f":"'SINIF LİSTESİ'!A8","v":219},{"$f":"'SINIF LİSTESİ'!B8","v":"AHSEN"},40,null,null,null,null,null,null,null,null,null,null,null,null,null,null,40]
[{"$f":"'SINIF LİSTESİ'!A9","v":234},{"$f":"'SINIF LİSTESİ'!B9","v":"NEHİR"},67,null,null,null,null,null,null,null,null,null,null,null,null,null,null,67]
[{"$f":"'SINIF LİSTESİ'!A10","v":317},{"$f":"'SINIF LİSTESİ'!B10","v":"MERYEM"},98,null,null,null,null,null,null,null,null,null,null,null,null,null,null,98]
[{"$f":"'SINIF LİSTESİ'!A11","v":319},{"$f":"'SINIF LİSTESİ'!B11","v":"NEHİR"},34,null,null,null,null,null,null,null,null,null,null,null,null,null,null,34]
[{"$f":"'SINIF LİSTESİ'!A12","v":331},{"$f":"'SINIF LİSTESİ'!B12","v":"YUNUS"},null,null,null,null,null,null,null,null,null,null,null,null,null,null,null,""]
[{"$f":"'SINIF LİSTESİ'!A13","v":359},{"$f":"'SINIF LİSTESİ'!B13","v":"ELİF"},null,null,null,null,null,null,null,null,null,null,null,null,null,null,null,""]
[{"$f":"'SINIF LİSTESİ'!A14","v":383},{"$f":"'SINIF LİSTESİ'!B14","v":"FURKAN"},null,null,null,null,null,null,null,null,null,null,null,null,null,null,null,""]
[{"$f":"'SINIF LİSTESİ'!A15","v":386},{"$f":"'SINIF LİSTESİ'!B15","v":"MEDİHA"},null,null,null,null,null,null,null,null,null,null,null,null,null,null,null,""]
[{"$f":"'SINIF LİSTESİ'!A16","v":420},{"$f":"'SINIF LİSTESİ'!B16","v":"BERTAN"},null,null,null,null,null,null,null,null,null,null,null,null,null,null,null,""]
[{"$f":"'SINIF LİSTESİ'!A17","v":430},{"$f":"'SINIF LİSTESİ'!B17","v":"CİHANNUR"},null,null,null,null,null,null,null,null,null,null,null,null,null,null,null,""]
[{"$f":"'SINIF LİSTESİ'!A18","v":459},{"$f":"'SINIF LİSTESİ'!B18","v":"AZİZ"},null,null,null,null,null,null,null,null,null,null,null,null,null,null,null,""]
[{"$f":"'SINIF LİSTESİ'!A19","v":462},{"$f":"'SINIF LİSTESİ'!B19","v":"HÜMEYSANUR"},null,null,null,null,null,null,null,null,null,null,null,null,null,null,null,""]
[{"$f":"'SINIF LİSTESİ'!A20","v":517},{"$f":"'SINIF LİSTESİ'!B20","v":"HAYRUNNİSA"},null,null,null,null,null,null,null,null,null,null,null,null,null,null,null,""]
[{"$f":"'SINIF LİSTESİ'!A21","v":542},{"$f":"'SINIF LİSTESİ'!B21","v":"NİMETULLAH"},null,null,null,null,null,null,null,null,null,null,null,null,null,null,null,""]
[{"$f":"'SINIF LİSTESİ'!A22","v":544},{"$f":"'SINIF LİSTESİ'!B22","v":"AYCAN"},null,null,null,null,null,null,null,null,null,null,null,null,null,null,null,""]
[{"$f":"'SINIF LİSTESİ'!A23","v":558},{"$f":"'SINIF LİSTESİ'!B23","v":"ELİF"},null,null,null,null,null,null,null,null,null,null,null,null,null,null,null,""]
[{"$f":"'SINIF LİSTESİ'!A24","v":585},{"$f":"'SINIF LİSTESİ'!B24","v":"AHMET"},null,null,null,null,null,null,null,null,null,null,null,null,null,null,null,""]
[{"$f":"'SINIF LİSTESİ'!A25","v":604},{"$f":"'SINIF LİSTESİ'!B25","v":"AZAM"},null,null,null,null,null,null,null,null,null,null,null,null,null,null,null,""]
[{"$f":"'SINIF LİSTESİ'!A26","v":644},{"$f":"'SINIF LİSTESİ'!B26","v":"DEMETNUR"},null,null,null,null,null,null,null,null,null,null,null,null,null,null,null,""]
[{"$f":"'SINIF LİSTESİ'!A27","v":696},{"$f":"'SINIF LİSTESİ'!B27","v":"ELİF"},null,null,null,null,null,null,null,null,null,null,null,null,null,null,null,""]
[{"$f":"'SINIF LİSTESİ'!A28","v":716},{"$f":"'SINIF LİSTESİ'!B28","v":"ERKAN"},null,null,null,null,null,null,null,null,null,null,null,null,null,null,null,""]
[{"$f":"'SINIF LİSTESİ'!A29","v":933},{"$f":"'SINIF LİSTESİ'!B29","v":"NİSA"},null,null,null,null,null,null,null,null,null,null,null,null,null,null,null,""]
[{"$f":"'SINIF LİSTESİ'!A30","v":5000},{"$f":"'SINIF LİSTESİ'!B30","v":"ASUDE"},null,null,null,null,null,null,null,null,null,null,null,null,null,null,null,""]

{"sheet":"DENEME SINAVI","index":4,"n_rows":30,"n_cols":18,"rows_kept":30,"cut":false,"hidden":false,"merged":[]}
[null,"not:","Öğrencinin aldığı puanı aynen yazın"]
[{"$f":"'SINIF LİSTESİ'!A2","v":"NO"},{"$f":"'SINIF LİSTESİ'!B2","v":"ADI SOYADI"},"DENM.1","DENM.2","DENM.3","DENM.4","DENM.5","DENM.6","DENM.7","DENM.8","DENM.9","DENM.10","DENM.11","DENM.12","DENM.13","DENM.14","DENM.15","ORTALAMA"]
[{"$f":"'SINIF LİSTESİ'!A3","v":91},{"$f":"'SINIF LİSTESİ'!B3","v":"ENES"},430,400,416,null,null,null,null,null,null,null,null,null,null,null,null,{"$f":"IF(C3<>\"\",AVERAGE(C3:Q3)/5,\"\")","v":83.066666666666663}]
[{"$f":"'SINIF LİSTESİ'!A4","v":126},{"$f":"'SINIF LİSTESİ'!B4","v":"BİLAL"},380,390,400,null,null,null,null,null,null,null,null,null,null,null,null,{"$f":"IF(C4<>\"\",AVERAGE(C4:Q4)/5,\"\")","v":78}]
[{"$f":"'SINIF LİSTESİ'!A5","v":169},{"$f":"'SINIF LİSTESİ'!B5","v":"YASİN"},378,400,425,null,null,null,null,null,null,null,null,null,null,null,null,80.2]
[{"$f":"'SINIF LİSTESİ'!A6","v":170},{"$f":"'SINIF LİSTESİ'!B6","v":"YİĞİT"},0,0,0,null,null,null,null,null,null,null,null,null,null,null,null,0]
[{"$f":"'SINIF LİSTESİ'!A7","v":206},{"$f":"'SINIF LİSTESİ'!B7","v":"DİLAN"},68,null,null,null,null,null,null,null,null,null,null,null,null,null,null,13.6]
[{"$f":"'SINIF LİSTESİ'!A8","v":219},{"$f":"'SINIF LİSTESİ'!B8","v":"AHSEN"},400,null,null,null,null,null,null,null,null,null,null,null,null,null,null,80]
[{"$f":"'SINIF LİSTESİ'!A9","v":234},{"$f":"'SINIF LİSTESİ'!B9","v":"NEHİR"},500,null,null,null,null,null,null,null,null,null,null,null,null,null,null,100]
[{"$f":"'SINIF LİSTESİ'!A10","v":317},{"$f":"'SINIF LİSTESİ'!B10","v":"MERYEM"},500,null,null,null,null,null,null,null,null,null,null,null,null,null,null,100]
[{"$f":"'SINIF LİSTESİ'!A11","v":319},{"$f":"'SINIF LİSTESİ'!B11","v":"NEHİR"},400,null,null,null,null,null,null,null,null,null,null,null,null,null,null,80]
[{"$f":"'SINIF LİSTESİ'!A12","v":331},{"$f":"'SINIF LİSTESİ'!B12","v":"YUNUS"},null,null,null,null,null,null,null,null,null,null,null,null,null,null,null,""]
[{"$f":"'SINIF LİSTESİ'!A13","v":359},{"$f":"'SINIF LİSTESİ'!B13","v":"ELİF"},null,null,null,null,null,null,null,null,null,null,null,null,null,null,null,""]
[{"$f":"'SINIF LİSTESİ'!A14","v":383},{"$f":"'SINIF LİSTESİ'!B14","v":"FURKAN"},null,null,null,null,null,null,null,null,null,null,null,null,null,null,null,""]
[{"$f":"'SINIF LİSTESİ'!A15","v":386},{"$f":"'SINIF LİSTESİ'!B15","v":"MEDİHA"},null,null,null,null,null,null,null,null,null,null,null,null,null,null,null,""]
[{"$f":"'SINIF LİSTESİ'!A16","v":420},{"$f":"'SINIF LİSTESİ'!B16","v":"BERTAN"},null,null,null,null,null,null,null,null,null,null,null,null,null,null,null,""]
[{"$f":"'SINIF LİSTESİ'!A17","v":430},{"$f":"'SINIF LİSTESİ'!B17","v":"CİHANNUR"},null,null,null,null,null,null,null,null,null,null,null,null,null,null,null,""]
[{"$f":"'SINIF LİSTESİ'!A18","v":459},{"$f":"'SINIF LİSTESİ'!B18","v":"AZİZ"},null,null,null,null,null,null,null,null,null,null,null,null,null,null,null,""]
[{"$f":"'SINIF LİSTESİ'!A19","v":462},{"$f":"'SINIF LİSTESİ'!B19","v":"HÜMEYSANUR"},null,null,null,null,null,null,null,null,null,null,null,null,null,null,null,""]
[{"$f":"'SINIF LİSTESİ'!A20","v":517},{"$f":"'SINIF LİSTESİ'!B20","v":"HAYRUNNİSA"},null,null,null,null,null,null,null,null,null,null,null,null,null,null,null,""]
[{"$f":"'SINIF LİSTESİ'!A21","v":542},{"$f":"'SINIF LİSTESİ'!B21","v":"NİMETULLAH"},null,null,null,null,null,null,null,null,null,null,null,null,null,null,null,""]
[{"$f":"'SINIF LİSTESİ'!A22","v":544},{"$f":"'SINIF LİSTESİ'!B22","v":"AYCAN"},null,null,null,null,null,null,null,null,null,null,null,null,null,null,null,""]
[{"$f":"'SINIF LİSTESİ'!A23","v":558},{"$f":"'SINIF LİSTESİ'!B23","v":"ELİF"},null,null,null,null,null,null,null,null,null,null,null,null,null,null,null,""]
[{"$f":"'SINIF LİSTESİ'!A24","v":585},{"$f":"'SINIF LİSTESİ'!B24","v":"AHMET"},null,null,null,null,null,null,null,null,null,null,null,null,null,null,null,""]
[{"$f":"'SINIF LİSTESİ'!A25","v":604},{"$f":"'SINIF LİSTESİ'!B25","v":"AZAM"},null,null,null,null,null,null,null,null,null,null,null,null,null,null,null,""]
[{"$f":"'SINIF LİSTESİ'!A26","v":644},{"$f":"'SINIF LİSTESİ'!B26","v":"DEMETNUR"},null,null,null,null,null,null,null,null,null,null,null,null,null,null,null,""]
[{"$f":"'SINIF LİSTESİ'!A27","v":696},{"$f":"'SINIF LİSTESİ'!B27","v":"ELİF"},null,null,null,null,null,null,null,null,null,null,null,null,null,null,null,""]
[{"$f":"'SINIF LİSTESİ'!A28","v":716},{"$f":"'SINIF LİSTESİ'!B28","v":"ERKAN"},null,null,null,null,null,null,null,null,null,null,null,null,null,null,null,""]
[{"$f":"'SINIF LİSTESİ'!A29","v":933},{"$f":"'SINIF LİSTESİ'!B29","v":"NİSA"},null,null,null,null,null,null,null,null,null,null,null,null,null,null,null,""]
[{"$f":"'SINIF LİSTESİ'!A30","v":5000},{"$f":"'SINIF LİSTESİ'!B30","v":"ASUDE"},null,null,null,null,null,null,null,null,null,null,null,null,null,null,null,""]

{"sheet":"ÖDEV","index":5,"n_rows":30,"n_cols":39,"rows_kept":30,"cut":false,"hidden":false,"merged":[]}
[null,"Not:","Öğrenciyi, ödevin tam yapılıp yapılmadığına göre 0,1,2,3 notlarından biriyle değerlendirin."]
[{"$f":"'SINIF LİSTESİ'!A2","v":"NO"},{"$f":"'SINIF LİSTESİ'!B2","v":"ADI SOYADI"},"Ö1","Ö2","Ö3","Ö4","Ö5","Ö6","Ö7","Ö8","Ö9","Ö10","Ö11","Ö12","Ö13","Ö14","Ö15"]
[{"$f":"'SINIF LİSTESİ'!A3","v":91},{"$f":"'SINIF LİSTESİ'!B3","v":"ENES"},null,null,null,null,null,null,null,null,null,null,null,null,null,null,null,{"$f":"IF(C3<>\"\",AVERAGE(C3:Q3),\"\")","v":""},null,null,null,null,null,{"$f":"IF(Y3<>\"\",AVERAGE(Y3:AM3),\"\")","v":""},{"$f":"IF(C3<>\"\",C3*20,\"\")","v":""},{"$f":"IF(D3<>\"\",D3*20,\"\")","v":""},"","","","","","","","","","","","",""]
[{"$f":"'SINIF LİSTESİ'!A4","v":126},{"$f":"'SINIF LİSTESİ'!B4","v":"BİLAL"},1,2,2,1,3,3,2,1,2,2,1,3,3,2,3,{"$f":"IF(C4<>\"\",AVERAGE(C4:Q4),\"\")","v":2.0666666666666669},null,null,null,null,null,{"$f":"IF(Y4<>\"\",AVERAGE(Y4:AM4),\"\")","v":41.333333333333336},{"$f":"IF(C4<>\"\",C4*20,\"\")","v":20},{"$f":"IF(D4<>\"\",D4*20,\"\")","v":40},{"$f":"IF(E4<>\"\",E4*20,\"\")","v":40},{"$f":"IF(F4<>\"\",F4*20,\"\")","v":20},{"$f":"IF(G4<>\"\",G4*20,\"\")","v":60},{"$f":"IF(H4<>\"\",H4*20,\"\")","v":60},{"$f":"IF(I4<>\"\",I4*20,\"\")","v":40},{"$f":"IF(J4<>\"\",J4*20,\"\")","v":20},{"$f":"IF(K4<>\"\",K4*20,\"\")","v":40},{"$f":"IF(L4<>\"\",L4*20,\"\")","v":40},{"$f":"IF(M4<>\"\",M4*20,\"\")","v":20},{"$f":"IF(N4<>\"\",N4*20,\"\")","v":60},{"$f":"IF(O4<>\"\",O4*20,\"\")","v":60},{"$f":"IF(P4<>\"\",P4*20,\"\")","v":40},{"$f":"IF(Q4<>\"\",Q4*20,\"\")","v":60}]
[{"$f":"'SINIF LİSTESİ'!A5","v":169},{"$f":"'SINIF LİSTESİ'!B5","v":"YASİN"},1,1,1,1,1,1,1,1,1,1,1,1,1,1,1,{"$f":"IF(C5<>\"\",AVERAGE(C5:Q5),\"\")","v":1},null,null,null,null,null,20,20,20,20,20,20,20,20,20,20,20,20,20,20,20,20]
[{"$f":"'SINIF LİSTESİ'!A6","v":170},{"$f":"'SINIF LİSTESİ'!B6","v":"YİĞİT"},3,3,3,3,3,3,3,3,3,3,3,3,3,3,3,3,null,null,null,null,null,60,60,60,60,60,60,60,60,60,60,60,60,60,60,60,60]
[{"$f":"'SINIF LİSTESİ'!A7","v":206},{"$f":"'SINIF LİSTESİ'!B7","v":"DİLAN"},null,null,null,null,null,null,null,null,null,null,null,null,null,null,null,"",null,null,null,null,null,"","","","","","","","","","","","","","","",""]
[{"$f":"'SINIF LİSTESİ'!A8","v":219},{"$f":"'SINIF LİSTESİ'!B8","v":"AHSEN"},null,null,null,null,null,null,null,null,null,null,null,null,null,null,null,"",null,null,null,null,null,"","","","","","","","","","","","","","","",""]
[{"$f":"'SINIF LİSTESİ'!A9","v":234},{"$f":"'SINIF LİSTESİ'!B9","v":"NEHİR"},null,null,null,null,null,null,null,null,null,null,null,null,null,null,null,"",null,null,null,null,null,"","","","","","","","","","","","","","","",""]
[{"$f":"'SINIF LİSTESİ'!A10","v":317},{"$f":"'SINIF LİSTESİ'!B10","v":"MERYEM"},null,null,null,null,null,null,null,null,null,null,null,null,null,null,null,"",null,null,null,null,null,"","","","","","","","","","","","","","","",""]
[{"$f":"'SINIF LİSTESİ'!A11","v":319},{"$f":"'SINIF LİSTESİ'!B11","v":"NEHİR"},null,null,null,null,null,null,null,null,null,null,null,null,null,null,null,"",null,null,null,null,null,"","","","","","","","","","","","","","","",""]
[{"$f":"'SINIF LİSTESİ'!A12","v":331},{"$f":"'SINIF LİSTESİ'!B12","v":"YUNUS"},null,null,null,null,null,null,null,null,null,null,null,null,null,null,null,"",null,null,null,null,null,"","","","","","","","","","","","","","","",""]
[{"$f":"'SINIF LİSTESİ'!A13","v":359},{"$f":"'SINIF LİSTESİ'!B13","v":"ELİF"},null,null,null,null,null,null,null,null,null,null,null,null,null,null,null,"",null,null,null,null,null,"","","","","","","","","","","","","","","",""]
[{"$f":"'SINIF LİSTESİ'!A14","v":383},{"$f":"'SINIF LİSTESİ'!B14","v":"FURKAN"},null,null,null,null,null,null,null,null,null,null,null,null,null,null,null,"",null,null,null,null,null,"","","","","","","","","","","","","","","",""]
[{"$f":"'SINIF LİSTESİ'!A15","v":386},{"$f":"'SINIF LİSTESİ'!B15","v":"MEDİHA"},null,null,null,null,null,null,null,null,null,null,null,null,null,null,null,"",null,null,null,null,null,"","","","","","","","","","","","","","","",""]
[{"$f":"'SINIF LİSTESİ'!A16","v":420},{"$f":"'SINIF LİSTESİ'!B16","v":"BERTAN"},null,null,null,null,null,null,null,null,null,null,null,null,null,null,null,"",null,null,null,null,null,"","","","","","","","","","","","","","","",""]
[{"$f":"'SINIF LİSTESİ'!A17","v":430},{"$f":"'SINIF LİSTESİ'!B17","v":"CİHANNUR"},null,null,null,null,null,null,null,null,null,null,null,null,null,null,null,"",null,null,null,null,null,"","","","","","","","","","","","","","","",""]
[{"$f":"'SINIF LİSTESİ'!A18","v":459},{"$f":"'SINIF LİSTESİ'!B18","v":"AZİZ"},null,null,null,null,null,null,null,null,null,null,null,null,null,null,null,"",null,null,null,null,null,"","","","","","","","","","","","","","","",""]
[{"$f":"'SINIF LİSTESİ'!A19","v":462},{"$f":"'SINIF LİSTESİ'!B19","v":"HÜMEYSANUR"},null,null,null,null,null,null,null,null,null,null,null,null,null,null,null,"",null,null,null,null,null,"","","","","","","","","","","","","","","",""]
[{"$f":"'SINIF LİSTESİ'!A20","v":517},{"$f":"'SINIF LİSTESİ'!B20","v":"HAYRUNNİSA"},null,null,null,null,null,null,null,null,null,null,null,null,null,null,null,"",null,null,null,null,null,"","","","","","","","","","","","","","","",""]
[{"$f":"'SINIF LİSTESİ'!A21","v":542},{"$f":"'SINIF LİSTESİ'!B21","v":"NİMETULLAH"},null,null,null,null,null,null,null,null,null,null,null,null,null,null,null,"",null,null,null,null,null,"","","","","","","","","","","","","","","",""]
[{"$f":"'SINIF LİSTESİ'!A22","v":544},{"$f":"'SINIF LİSTESİ'!B22","v":"AYCAN"},null,null,null,null,null,null,null,null,null,null,null,null,null,null,null,"",null,null,null,null,null,"","","","","","","","","","","","","","","",""]
[{"$f":"'SINIF LİSTESİ'!A23","v":558},{"$f":"'SINIF LİSTESİ'!B23","v":"ELİF"},null,null,null,null,null,null,null,null,null,null,null,null,null,null,null,"",null,null,null,null,null,"","","","","","","","","","","","","","","",""]
[{"$f":"'SINIF LİSTESİ'!A24","v":585},{"$f":"'SINIF LİSTESİ'!B24","v":"AHMET"},null,null,null,null,null,null,null,null,null,null,null,null,null,null,null,"",null,null,null,null,null,"","","","","","","","","","","","","","","",""]
[{"$f":"'SINIF LİSTESİ'!A25","v":604},{"$f":"'SINIF LİSTESİ'!B25","v":"AZAM"},null,null,null,null,null,null,null,null,null,null,null,null,null,null,null,"",null,null,null,null,null,"","","","","","","","","","","","","","","",""]
[{"$f":"'SINIF LİSTESİ'!A26","v":644},{"$f":"'SINIF LİSTESİ'!B26","v":"DEMETNUR"},null,null,null,null,null,null,null,null,null,null,null,null,null,null,null,"",null,null,null,null,null,"","","","","","","","","","","","","","","",""]
[{"$f":"'SINIF LİSTESİ'!A27","v":696},{"$f":"'SINIF LİSTESİ'!B27","v":"ELİF"},null,null,null,null,null,null,null,null,null,null,null,null,null,null,null,"",null,null,null,null,null,"","","","","","","","","","","","","","","",""]
[{"$f":"'SINIF LİSTESİ'!A28","v":716},{"$f":"'SINIF LİSTESİ'!B28","v":"ERKAN"},null,null,null,null,null,null,null,null,null,null,null,null,null,null,null,"",null,null,null,null,null,"","","","","","","","","","","","","","","",""]
[{"$f":"'SINIF LİSTESİ'!A29","v":933},{"$f":"'SINIF LİSTESİ'!B29","v":"NİSA"},null,null,null,null,null,null,null,null,null,null,null,null,null,null,null,"",null,null,null,null,null,"","","","","","","","","","","","","","","",""]
[{"$f":"'SINIF LİSTESİ'!A30","v":5000},{"$f":"'SINIF LİSTESİ'!B30","v":"ASUDE"},null,null,null,null,null,null,null,null,null,null,null,null,null,null,null,"",null,null,null,null,null,"","","","","","","","","","","","","","","",""]

{"sheet":"DERSE KATILIM","index":6,"n_rows":30,"n_cols":35,"rows_kept":30,"cut":false,"hidden":false,"merged":[]}
[null,"Not:","İki üç haftada bir 0,1,2,3 notlarından biriyle değerlendirin"]
[{"$f":"'SINIF LİSTESİ'!A2","v":"NO"},{"$f":"'SINIF LİSTESİ'!B2","v":"ADI SOYADI"},"DK1","DK2","DK3","DK4","DK5","DK6","DK7","DK8","DK9","DK10","DK11","DK12","DK13","DK14","DK15"]
[{"$f":"'SINIF LİSTESİ'!A3","v":91},{"$f":"'SINIF LİSTESİ'!B3","v":"ENES"},0,1,0,1,1,2,2,1,3,3,3,3,2,3,3,{"$f":"IF(C3<>\"\",AVERAGE(C3:Q3),\"\")","v":1.8666666666666667},null,{"$f":"IF(U3<>\"\",AVERAGE(U3:AI3),\"\")","v":37.333333333333336},{"$f":"IF(C3<>\"\",C3*20,\"\")","v":0},{"$f":"IF(D3<>\"\",D3*20,\"\")","v":20},0,20,20,40,40,20,60,60,60,60,40,60,60]
[{"$f":"'SINIF LİSTESİ'!A4","v":126},{"$f":"'SINIF LİSTESİ'!B4","v":"BİLAL"},3,3,3,2,2,2,2,3,3,3,3,0,0,1,1,{"$f":"IF(C4<>\"\",AVERAGE(C4:Q4),\"\")","v":2.0666666666666669},null,{"$f":"IF(U4<>\"\",AVERAGE(U4:AI4),\"\")","v":41.333333333333336},{"$f":"IF(C4<>\"\",C4*20,\"\")","v":60},{"$f":"IF(D4<>\"\",D4*20,\"\")","v":60},{"$f":"IF(E4<>\"\",E4*20,\"\")","v":60},{"$f":"IF(F4<>\"\",F4*20,\"\")","v":40},{"$f":"IF(G4<>\"\",G4*20,\"\")","v":40},{"$f":"IF(H4<>\"\",H4*20,\"\")","v":40},{"$f":"IF(I4<>\"\",I4*20,\"\")","v":40},{"$f":"IF(J4<>\"\",J4*20,\"\")","v":60},{"$f":"IF(K4<>\"\",K4*20,\"\")","v":60},{"$f":"IF(L4<>\"\",L4*20,\"\")","v":60},{"$f":"IF(M4<>\"\",M4*20,\"\")","v":60},{"$f":"IF(N4<>\"\",N4*20,\"\")","v":0},{"$f":"IF(O4<>\"\",O4*20,\"\")","v":0},{"$f":"IF(P4<>\"\",P4*20,\"\")","v":20},{"$f":"IF(Q4<>\"\",Q4*20,\"\")","v":20}]
[{"$f":"'SINIF LİSTESİ'!A5","v":169},{"$f":"'SINIF LİSTESİ'!B5","v":"YASİN"},2,1,2,2,2,2,2,2,2,1,1,1,2,2,2,1.7333333333333334,null,34.666666666666664,40,20,40,40,40,40,40,40,40,20,20,20,40,40,40]
[{"$f":"'SINIF LİSTESİ'!A6","v":170},{"$f":"'SINIF LİSTESİ'!B6","v":"YİĞİT"},3,3,3,3,3,3,3,2,2,3,3,3,3,3,3,2.8666666666666667,null,57.333333333333336,60,60,60,60,60,60,60,40,40,60,60,60,60,60,60]
[{"$f":"'SINIF LİSTESİ'!A7","v":206},{"$f":"'SINIF LİSTESİ'!B7","v":"DİLAN"},3,null,null,null,null,null,null,null,null,null,null,null,null,null,null,3,null,60,60,"","","","","","","","","","","","","",""]
[{"$f":"'SINIF LİSTESİ'!A8","v":219},{"$f":"'SINIF LİSTESİ'!B8","v":"AHSEN"},3,null,null,null,null,null,null,null,null,null,null,null,null,null,null,3,null,60,60,"","","","","","","","","","","","","",""]
[{"$f":"'SINIF LİSTESİ'!A9","v":234},{"$f":"'SINIF LİSTESİ'!B9","v":"NEHİR"},2,null,null,null,null,null,null,null,null,null,null,null,null,null,null,2,null,40,40,"","","","","","","","","","","","","",""]
[{"$f":"'SINIF LİSTESİ'!A10","v":317},{"$f":"'SINIF LİSTESİ'!B10","v":"MERYEM"},1,null,null,null,null,null,null,null,null,null,null,null,null,null,null,1,null,20,20,"","","","","","","","","","","","","",""]
[{"$f":"'SINIF LİSTESİ'!A11","v":319},{"$f":"'SINIF LİSTESİ'!B11","v":"NEHİR"},3,2,null,null,null,null,null,null,null,null,null,null,null,null,null,2.5,null,{"$f":"IF(U11<>\"\",AVERAGE(U11:AI11),\"\")","v":50},60,40,"","","","","","","","","","","","",""]
[{"$f":"'SINIF LİSTESİ'!A12","v":331},{"$f":"'SINIF LİSTESİ'!B12","v":"YUNUS"},null,null,null,null,null,null,null,null,null,null,null,null,null,null,null,"",null,"","","","","","","","","","","","","","","",""]
[{"$f":"'SINIF LİSTESİ'!A13","v":359},{"$f":"'SINIF LİSTESİ'!B13","v":"ELİF"},null,null,null,null,null,null,null,null,null,null,null,null,null,null,null,"",null,"","","","","","","","","","","","","","","",""]
[{"$f":"'SINIF LİSTESİ'!A14","v":383},{"$f":"'SINIF LİSTESİ'!B14","v":"FURKAN"},null,null,null,null,null,null,null,null,null,null,null,null,null,null,null,"",null,"","","","","","","","","","","","","","","",""]
[{"$f":"'SINIF LİSTESİ'!A15","v":386},{"$f":"'SINIF LİSTESİ'!B15","v":"MEDİHA"},null,null,null,null,null,null,null,null,null,null,null,null,null,null,null,"",null,"","","","","","","","","","","","","","","",""]
[{"$f":"'SINIF LİSTESİ'!A16","v":420},{"$f":"'SINIF LİSTESİ'!B16","v":"BERTAN"},null,null,null,null,null,null,null,null,null,null,null,null,null,null,null,"",null,"","","","","","","","","","","","","","","",""]
[{"$f":"'SINIF LİSTESİ'!A17","v":430},{"$f":"'SINIF LİSTESİ'!B17","v":"CİHANNUR"},null,null,null,null,null,null,null,null,null,null,null,null,null,null,null,"",null,"","","","","","","","","","","","","","","",""]
[{"$f":"'SINIF LİSTESİ'!A18","v":459},{"$f":"'SINIF LİSTESİ'!B18","v":"AZİZ"},null,null,null,null,null,null,null,null,null,null,null,null,null,null,null,"",null,"","","","","","","","","","","","","","","",""]
[{"$f":"'SINIF LİSTESİ'!A19","v":462},{"$f":"'SINIF LİSTESİ'!B19","v":"HÜMEYSANUR"},null,null,null,null,null,null,null,null,null,null,null,null,null,null,null,"",null,"","","","","","","","","","","","","","","",""]
[{"$f":"'SINIF LİSTESİ'!A20","v":517},{"$f":"'SINIF LİSTESİ'!B20","v":"HAYRUNNİSA"},null,null,null,null,null,null,null,null,null,null,null,null,null,null,null,"",null,"","","","","","","","","","","","","","","",""]
[{"$f":"'SINIF LİSTESİ'!A21","v":542},{"$f":"'SINIF LİSTESİ'!B21","v":"NİMETULLAH"},null,null,null,null,null,null,null,null,null,null,null,null,null,null,null,"",null,"","","","","","","","","","","","","","","",""]
[{"$f":"'SINIF LİSTESİ'!A22","v":544},{"$f":"'SINIF LİSTESİ'!B22","v":"AYCAN"},null,null,null,null,null,null,null,null,null,null,null,null,null,null,null,"",null,"","","","","","","","","","","","","","","",""]
[{"$f":"'SINIF LİSTESİ'!A23","v":558},{"$f":"'SINIF LİSTESİ'!B23","v":"ELİF"},null,null,null,null,null,null,null,null,null,null,null,null,null,null,null,"",null,"","","","","","","","","","","","","","","",""]
[{"$f":"'SINIF LİSTESİ'!A24","v":585},{"$f":"'SINIF LİSTESİ'!B24","v":"AHMET"},null,null,null,null,null,null,null,null,null,null,null,null,null,null,null,"",null,"","","","","","","","","","","","","","","",""]
[{"$f":"'SINIF LİSTESİ'!A25","v":604},{"$f":"'SINIF LİSTESİ'!B25","v":"AZAM"},null,null,null,null,null,null,null,null,null,null,null,null,null,null,null,"",null,"","","","","","","","","","","","","","","",""]
[{"$f":"'SINIF LİSTESİ'!A26","v":644},{"$f":"'SINIF LİSTESİ'!B26","v":"DEMETNUR"},null,null,null,null,null,null,null,null,null,null,null,null,null,null,null,"",null,"","","","","","","","","","","","","","","",""]
[{"$f":"'SINIF LİSTESİ'!A27","v":696},{"$f":"'SINIF LİSTESİ'!B27","v":"ELİF"},null,null,null,null,null,null,null,null,null,null,null,null,null,null,null,"",null,"","","","","","","","","","","","","","","",""]
[{"$f":"'SINIF LİSTESİ'!A28","v":716},{"$f":"'SINIF LİSTESİ'!B28","v":"ERKAN"},null,null,null,null,null,null,null,null,null,null,null,null,null,null,null,"",null,"","","","","","","","","","","","","","","",""]
[{"$f":"'SINIF LİSTESİ'!A29","v":933},{"$f":"'SINIF LİSTESİ'!B29","v":"NİSA"},null,null,null,null,null,null,null,null,null,null,null,null,null,null,null,"",null,"","","","","","","","","","","","","","","",""]
[{"$f":"'SINIF LİSTESİ'!A30","v":5000},{"$f":"'SINIF LİSTESİ'!B30","v":"ASUDE"},null,null,null,null,null,null,null,null,null,null,null,null,null,null,null,"",null,"","","","","","","","","","","","","","","",""]

{"sheet":"DAVRANIŞ","index":7,"n_rows":30,"n_cols":34,"rows_kept":30,"cut":false,"hidden":false,"merged":[]}
[null,"Not:","İki üç haftada bir 0,1,2,3 notlarından biriyle değerlendirin"]
[{"$f":"'SINIF LİSTESİ'!A2","v":"NO"},{"$f":"'SINIF LİSTESİ'!B2","v":"ADI SOYADI"},"D1","D2","D3","D4","D5","D6","D7","D8","D9","D10","D11","D12","D13","D14","D15"]
[{"$f":"'SINIF LİSTESİ'!A3","v":91},{"$f":"'SINIF LİSTESİ'!B3","v":"ENES"},3,2,3,2,2,3,null,null,null,null,null,null,null,null,3,{"$f":"IF(C3<>\"\",AVERAGE(C3:Q3),\"\")","v":2.5714285714285716},{"$f":"IF(T3<>\"\",AVERAGE(T3:AH3),\"\")","v":41.632653061224495},{"$f":"IF(C3<>\"\",D3*20,\"\")","v":40},{"$f":"IF(D3<>\"\",E3*20,\"\")","v":60},40,40,60,0,"","","","","","","","",51.428571428571431]
[{"$f":"'SINIF LİSTESİ'!A4","v":126},{"$f":"'SINIF LİSTESİ'!B4","v":"BİLAL"},1,1,2,2,1,3,null,null,null,null,null,null,null,null,null,{"$f":"IF(C4<>\"\",AVERAGE(C4:Q4),\"\")","v":1.6666666666666667},{"$f":"IF(T4<>\"\",AVERAGE(T4:AH4),\"\")","v":30},{"$f":"IF(C4<>\"\",D4*20,\"\")","v":20},{"$f":"IF(D4<>\"\",E4*20,\"\")","v":40},{"$f":"IF(E4<>\"\",F4*20,\"\")","v":40},{"$f":"IF(F4<>\"\",G4*20,\"\")","v":20},{"$f":"IF(G4<>\"\",H4*20,\"\")","v":60},{"$f":"IF(H4<>\"\",I4*20,\"\")","v":0},{"$f":"IF(I4<>\"\",J4*20,\"\")","v":""},{"$f":"IF(J4<>\"\",K4*20,\"\")","v":""},{"$f":"IF(K4<>\"\",L4*20,\"\")","v":""},{"$f":"IF(L4<>\"\",M4*20,\"\")","v":""},{"$f":"IF(M4<>\"\",N4*20,\"\")","v":""},{"$f":"IF(N4<>\"\",O4*20,\"\")","v":""},{"$f":"IF(O4<>\"\",P4*20,\"\")","v":""},{"$f":"IF(P4<>\"\",Q4*20,\"\")","v":""},{"$f":"IF(Q4<>\"\",R4*20,\"\")","v":""}]
[{"$f":"'SINIF LİSTESİ'!A5","v":169},{"$f":"'SINIF LİSTESİ'!B5","v":"YASİN"},3,2,2,3,2,2,null,null,null,null,null,null,null,null,null,2.3333333333333335,36.666666666666664,40,40,60,40,40,0,"","","","","","","","",""]
[{"$f":"'SINIF LİSTESİ'!A6","v":170},{"$f":"'SINIF LİSTESİ'!B6","v":"YİĞİT"},2,3,3,2,3,3,null,null,null,null,null,null,null,null,null,2.6666666666666665,46.666666666666664,60,60,40,60,60,0,"","","","","","","","",""]
[{"$f":"'SINIF LİSTESİ'!A7","v":206},{"$f":"'SINIF LİSTESİ'!B7","v":"DİLAN"},3,null,null,null,null,null,null,null,null,null,null,null,null,null,null,3,0,0,"","","","","","","","","","","","","",""]
[{"$f":"'SINIF LİSTESİ'!A8","v":219},{"$f":"'SINIF LİSTESİ'!B8","v":"AHSEN"},2,null,null,null,null,null,null,null,null,null,null,null,null,null,null,2,0,0,"","","","","","","","","","","","","",""]
[{"$f":"'SINIF LİSTESİ'!A9","v":234},{"$f":"'SINIF LİSTESİ'!B9","v":"NEHİR"},2,null,null,null,null,null,null,null,null,null,null,null,null,null,null,2,0,0,"","","","","","","","","","","","","",""]
[{"$f":"'SINIF LİSTESİ'!A10","v":317},{"$f":"'SINIF LİSTESİ'!B10","v":"MERYEM"},1,null,null,null,null,null,null,null,null,null,null,null,null,null,null,1,0,0,"","","","","","","","","","","","","",""]
[{"$f":"'SINIF LİSTESİ'!A11","v":319},{"$f":"'SINIF LİSTESİ'!B11","v":"NEHİR"},1,null,null,null,null,null,null,null,null,null,null,null,null,null,null,1,0,0,"","","","","","","","","","","","","",""]
[{"$f":"'SINIF LİSTESİ'!A12","v":331},{"$f":"'SINIF LİSTESİ'!B12","v":"YUNUS"},null,null,null,null,null,null,null,null,null,null,null,null,null,null,null,"","","","","","","","","","","","","","","","",""]
[{"$f":"'SINIF LİSTESİ'!A13","v":359},{"$f":"'SINIF LİSTESİ'!B13","v":"ELİF"},null,null,null,null,null,null,null,null,null,null,null,null,null,null,null,"","","","","","","","","","","","","","","","",""]
[{"$f":"'SINIF LİSTESİ'!A14","v":383},{"$f":"'SINIF LİSTESİ'!B14","v":"FURKAN"},null,null,null,null,null,null,null,null,null,null,null,null,null,null,null,"","","","","","","","","","","","","","","","",""]
[{"$f":"'SINIF LİSTESİ'!A15","v":386},{"$f":"'SINIF LİSTESİ'!B15","v":"MEDİHA"},null,null,null,null,null,null,null,null,null,null,null,null,null,null,null,"","","","","","","","","","","","","","","","",""]
[{"$f":"'SINIF LİSTESİ'!A16","v":420},{"$f":"'SINIF LİSTESİ'!B16","v":"BERTAN"},null,null,null,null,null,null,null,null,null,null,null,null,null,null,null,"","","","","","","","","","","","","","","","",""]
[{"$f":"'SINIF LİSTESİ'!A17","v":430},{"$f":"'SINIF LİSTESİ'!B17","v":"CİHANNUR"},null,null,null,null,null,null,null,null,null,null,null,null,null,null,null,"","","","","","","","","","","","","","","","",""]
[{"$f":"'SINIF LİSTESİ'!A18","v":459},{"$f":"'SINIF LİSTESİ'!B18","v":"AZİZ"},null,null,null,null,null,null,null,null,null,null,null,null,null,null,null,"","","","","","","","","","","","","","","","",""]
[{"$f":"'SINIF LİSTESİ'!A19","v":462},{"$f":"'SINIF LİSTESİ'!B19","v":"HÜMEYSANUR"},null,null,null,null,null,null,null,null,null,null,null,null,null,null,null,"","","","","","","","","","","","","","","","",""]
[{"$f":"'SINIF LİSTESİ'!A20","v":517},{"$f":"'SINIF LİSTESİ'!B20","v":"HAYRUNNİSA"},null,null,null,null,null,null,null,null,null,null,null,null,null,null,null,"","","","","","","","","","","","","","","","",""]
[{"$f":"'SINIF LİSTESİ'!A21","v":542},{"$f":"'SINIF LİSTESİ'!B21","v":"NİMETULLAH"},null,null,null,null,null,null,null,null,null,null,null,null,null,null,null,"","","","","","","","","","","","","","","","",""]
[{"$f":"'SINIF LİSTESİ'!A22","v":544},{"$f":"'SINIF LİSTESİ'!B22","v":"AYCAN"},null,null,null,null,null,null,null,null,null,null,null,null,null,null,null,"","","","","","","","","","","","","","","","",""]
[{"$f":"'SINIF LİSTESİ'!A23","v":558},{"$f":"'SINIF LİSTESİ'!B23","v":"ELİF"},null,null,null,null,null,null,null,null,null,null,null,null,null,null,null,"","","","","","","","","","","","","","","","",""]
[{"$f":"'SINIF LİSTESİ'!A24","v":585},{"$f":"'SINIF LİSTESİ'!B24","v":"AHMET"},null,null,null,null,null,null,null,null,null,null,null,null,null,null,null,"","","","","","","","","","","","","","","","",""]
[{"$f":"'SINIF LİSTESİ'!A25","v":604},{"$f":"'SINIF LİSTESİ'!B25","v":"AZAM"},null,null,null,null,null,null,null,null,null,null,null,null,null,null,null,"","","","","","","","","","","","","","","","",""]
[{"$f":"'SINIF LİSTESİ'!A26","v":644},{"$f":"'SINIF LİSTESİ'!B26","v":"DEMETNUR"},null,null,null,null,null,null,null,null,null,null,null,null,null,null,null,"","","","","","","","","","","","","","","","",""]
[{"$f":"'SINIF LİSTESİ'!A27","v":696},{"$f":"'SINIF LİSTESİ'!B27","v":"ELİF"},null,null,null,null,null,null,null,null,null,null,null,null,null,null,null,"","","","","","","","","","","","","","","","",""]
[{"$f":"'SINIF LİSTESİ'!A28","v":716},{"$f":"'SINIF LİSTESİ'!B28","v":"ERKAN"},null,null,null,null,null,null,null,null,null,null,null,null,null,null,null,"","","","","","","","","","","","","","","","",""]
[{"$f":"'SINIF LİSTESİ'!A29","v":933},{"$f":"'SINIF LİSTESİ'!B29","v":"NİSA"},null,null,null,null,null,null,null,null,null,null,null,null,null,null,null,"","","","","","","","","","","","","","","","",""]
[{"$f":"'SINIF LİSTESİ'!A30","v":5000},{"$f":"'SINIF LİSTESİ'!B30","v":"ASUDE"},null,null,null,null,null,null,null,null,null,null,null,null,null,null,null,"","","","","","","","","","","","","","","","",""]

{"sheet":"ÖĞRENCİ GELİŞİMİ","index":8,"n_rows":15,"n_cols":27,"rows_kept":15,"cut":false,"hidden":false,"merged":[[1,5,1,14],[13,5,13,14],[14,5,14,14]]}
[null,null,null,null,null,null,null,null,null,null,null,null,null,null,null,null,null,null,null,null,null,null,null,null,null,null,1]
[null,null,null,null,"ÖĞRENCİ ADI SOYADI","ENES KARACAOĞLU"]
[]
[null,null,null,null,null,null,null,null,null,null,null,null,null,null,null,null,null,null,null,null,"ORTALAMA"]
[null,null,null,null,"YAZILI SONUÇLARI",30,56,100,100,100,100,null,null,null,null,null,null,null,null,null,{"$f":"IF(F5<>\"\",AVERAGE(F5:T5),\"\")","v":81}]
[null,null,null,null,"TEST SONUÇLARI",40,50,60,70,55,40,25,10,30,50,70,90,100,70,60,{"$f":"IF(F6<>\"\",AVERAGE(F6:T6),\"\")","v":54.666666666666664}]
[null,null,null,null,"DENEME SINAVI S.",430,400,416,null,null,null,null,null,null,null,null,null,null,null,null,{"$f":"IF(F7<>\"\",AVERAGE(F7:T7),\"\")","v":415.33333333333331}]
[null,null,null,null,"ÖDEV TAKİBİ",null,null,null,null,null,null,null,null,null,null,null,null,null,null,null,""]
[null,null,null,null,"DERSE KATILIM",0,1,0,1,1,2,2,1,3,3,3,3,2,3,3,{"$f":"IF(F9<>\"\",AVERAGE(F9:T9),\"\")","v":1.8666666666666667}]
[null,null,null,null,"DAVRANIŞ",3,2,3,2,2,3,null,null,null,null,null,null,null,null,3,2.5714285714285716]
[]
[]
[]
[null,null,null,null,"EN BAŞARILI",{"$f":"Sayfa1!J3","v":0}]
[null,null,null,null,"EN BAŞARISIZ",{"$f":"Sayfa1!J4","v":0}]

{"sheet":"Sayfa1","index":9,"n_rows":763,"n_cols":17,"rows_kept":763,"cut":false,"hidden":false,"merged":[]}
[null,null,100,500,100,3,3,3,9,null,null,null,null,null,15]
["NO","ADI SOYADI","NOT","DENEME","TEST","ÖDEV","DESE K.","DAVRANIŞ","BAŞARI İNDEKSİ",null,null,null,"MAX",{"$f":"MAX(I3:I30)","v":{"$error":"#REF!"}},null,"sıralama"]
[{"$f":"'SINIF LİSTESİ'!A3","v":91},{"$f":"'SINIF LİSTESİ'!B3","v":"ENES"},{"$f":"NOT!#REF!","v":{"$error":"#REF!"}},{"$f":"'DENEME SINAVI'!R3","v":83.066666666666663},{"$f":"TEST!R3","v":54.666666666666664},{"$f":"ÖDEV!X3","v":""},{"$f":"'DERSE KATILIM'!T3","v":37.333333333333336},{"$f":"DAVRANIŞ!S3","v":41.632653061224495},{"$f":"IF(C3<>\"\",SUM(C3:H3),IF(D3<>\"\",SUM(C3:H3),IF(E3<>\"\",SUM(C3:H3),IF(F3<>\"\",SUM(C3:H3),\"\"))))","v":{"$error":"#REF!"}},0,"(En başarılı)",null,"MİN",{"$f":"MIN(I3:I30)","v":{"$error":"#REF!"}},null,"",0]
[{"$f":"'SINIF LİSTESİ'!A4","v":126},{"$f":"'SINIF LİSTESİ'!B4","v":"BİLAL"},{"$f":"NOT!#REF!","v":{"$error":"#REF!"}},{"$f":"'DENEME SINAVI'!R4","v":78},{"$f":"TEST!R4","v":50},{"$f":"ÖDEV!X4","v":41.333333333333336},{"$f":"'DERSE KATILIM'!T4","v":41.333333333333336},{"$f":"DAVRANIŞ!S4","v":30},{"$f":"IF(C4<>\"\",SUM(C4:H4),IF(D4<>\"\",SUM(C4:H4),IF(E4<>\"\",SUM(C4:H4),IF(F4<>\"\",SUM(C4:H4),\"\"))))","v":{"$error":"#REF!"}},0,"(En başarısız)",null,null,null,null,318.66666666666669,"MERT ATAKAN"]
[{"$f":"'SINIF LİSTESİ'!A5","v":169},{"$f":"'SINIF LİSTESİ'!B5","v":"YASİN"},{"$f":"NOT!#REF!","v":{"$error":"#REF!"}},{"$f":"'DENEME SINAVI'!R5","v":80.2},{"$f":"TEST!R5","v":76.8},{"$f":"ÖDEV!X5","v":20},{"$f":"'DERSE KATILIM'!T5","v":34.666666666666664},{"$f":"DAVRANIŞ!S5","v":36.666666666666664},{"$error":"#REF!"},null,null,null,null,null,null,312.33333333333337,"MEHMET SAN"]
[{"$f":"'SINIF LİSTESİ'!A6","v":170},{"$f":"'SINIF LİSTESİ'!B6","v":"YİĞİT"},{"$f":"NOT!#REF!","v":{"$error":"#REF!"}},{"$f":"'DENEME SINAVI'!R6","v":0},{"$f":"TEST!R6","v":0},{"$f":"ÖDEV!X6","v":60},{"$f":"'DERSE KATILIM'!T6","v":57.333333333333336},{"$f":"DAVRANIŞ!S6","v":46.666666666666664},{"$error":"#REF!"},null,null,null,null,null,null,293.66666666666669,"SADİ DİYE BİRİ"]
[{"$f":"'SINIF LİSTESİ'!A7","v":206},{"$f":"'SINIF LİSTESİ'!B7","v":"DİLAN"},{"$f":"NOT!#REF!","v":{"$error":"#REF!"}},{"$f":"'DENEME SINAVI'!R7","v":13.6},{"$f":"TEST!R7","v":5},{"$f":"ÖDEV!X7","v":""},{"$f":"'DERSE KATILIM'!T7","v":60},{"$f":"DAVRANIŞ!S7","v":0},{"$error":"#REF!"},null,null,null,null,null,null,282.86598639455786,"ALİ ENDER"]
[{"$f":"'SINIF LİSTESİ'!A8","v":219},{"$f":"'SINIF LİSTESİ'!B8","v":"AHSEN"},{"$f":"NOT!#REF!","v":{"$error":"#REF!"}},{"$f":"'DENEME SINAVI'!R8","v":80},{"$f":"TEST!R8","v":40},{"$f":"ÖDEV!X8","v":""},{"$f":"'DERSE KATILIM'!T8","v":60},{"$f":"DAVRANIŞ!S8","v":0},{"$error":"#REF!"},null,null,null,null,null,null,269.5,"AHMET KURAL"]
[{"$f":"'SINIF LİSTESİ'!A9","v":234},{"$f":"'SINIF LİSTESİ'!B9","v":"NEHİR"},{"$f":"NOT!#REF!","v":{"$error":"#REF!"}},{"$f":"'DENEME SINAVI'!R9","v":100},{"$f":"TEST!R9","v":67},{"$f":"ÖDEV!X9","v":""},{"$f":"'DERSE KATILIM'!T9","v":40},{"$f":"DAVRANIŞ!S9","v":0},{"$error":"#REF!"},null,null,null,null,null,null,226.5,"TARIK EFE"]
[{"$f":"'SINIF LİSTESİ'!A10","v":317},{"$f":"'SINIF LİSTESİ'!B10","v":"MERYEM"},{"$f":"NOT!#REF!","v":{"$error":"#REF!"}},{"$f":"'DENEME SINAVI'!R10","v":100},{"$f":"TEST!R10","v":98},{"$f":"ÖDEV!X10","v":""},{"$f":"'DERSE KATILIM'!T10","v":20},{"$f":"DAVRANIŞ!S10","v":0},{"$error":"#REF!"},null,null,null,null,null,null,224.5,"MURATCEMŞİR"]
[{"$f":"'SINIF LİSTESİ'!A11","v":319},{"$f":"'SINIF LİSTESİ'!B11","v":"NEHİR"},{"$f":"NOT!#REF!","v":{"$error":"#REF!"}},{"$f":"'DENEME SINAVI'!R11","v":80},{"$f":"TEST!R11","v":34},{"$f":"ÖDEV!X11","v":""},{"$f":"'DERSE KATILIM'!T11","v":50},{"$f":"DAVRANIŞ!S11","v":0},{"$error":"#REF!"},null,null,null,null,null,null,214,"SİNEM ÖZSAN"]
[{"$f":"'SINIF LİSTESİ'!A12","v":331},{"$f":"'SINIF LİSTESİ'!B12","v":"YUNUS"},{"$f":"NOT!#REF!","v":{"$error":"#REF!"}},{"$f":"'DENEME SINAVI'!R12","v":""},{"$f":"TEST!R12","v":""},{"$f":"ÖDEV!X12","v":""},{"$f":"'DERSE KATILIM'!T12","v":""},{"$f":"DAVRANIŞ!S12","v":""},{"$error":"#REF!"},null,null,null,null,null,null,168.6,"MURAT ÇELİK"]
[{"$f":"'SINIF LİSTESİ'!A13","v":359},{"$f":"'SINIF LİSTESİ'!B13","v":"ELİF"},{"$f":"NOT!#REF!","v":{"$error":"#REF!"}},{"$f":"'DENEME SINAVI'!R13","v":""},{"$f":"TEST!R13","v":""},{"$f":"ÖDEV!X13","v":""},{"$f":"'DERSE KATILIM'!T13","v":""},{"$f":"DAVRANIŞ!S13","v":""},{"$error":"#REF!"},null,null,null,null,null,null,null,0]
[{"$f":"'SINIF LİSTESİ'!A14","v":383},{"$f":"'SINIF LİSTESİ'!B14","v":"FURKAN"},{"$f":"NOT!#REF!","v":{"$error":"#REF!"}},{"$f":"'DENEME SINAVI'!R14","v":""},{"$f":"TEST!R14","v":""},{"$f":"ÖDEV!X14","v":""},{"$f":"'DERSE KATILIM'!T14","v":""},{"$f":"DAVRANIŞ!S14","v":""},{"$error":"#REF!"},null,null,null,null,null,null,null,0]
[{"$f":"'SINIF LİSTESİ'!A15","v":386},{"$f":"'SINIF LİSTESİ'!B15","v":"MEDİHA"},{"$f":"NOT!#REF!","v":{"$error":"#REF!"}},{"$f":"'DENEME SINAVI'!R15","v":""},{"$f":"TEST!R15","v":""},{"$f":"ÖDEV!X15","v":""},{"$f":"'DERSE KATILIM'!T15","v":""},{"$f":"DAVRANIŞ!S15","v":""},{"$error":"#REF!"},null,null,null,null,null,null,null,0]
[{"$f":"'SINIF LİSTESİ'!A16","v":420},{"$f":"'SINIF LİSTESİ'!B16","v":"BERTAN"},{"$f":"NOT!#REF!","v":{"$error":"#REF!"}},{"$f":"'DENEME SINAVI'!R16","v":""},{"$f":"TEST!R16","v":""},{"$f":"ÖDEV!X16","v":""},{"$f":"'DERSE KATILIM'!T16","v":""},{"$f":"DAVRANIŞ!S16","v":""},{"$error":"#REF!"},null,null,null,null,null,null,null,0]
[{"$f":"'SINIF LİSTESİ'!A17","v":430},{"$f":"'SINIF LİSTESİ'!B17","v":"CİHANNUR"},{"$f":"NOT!#REF!","v":{"$error":"#REF!"}},{"$f":"'DENEME SINAVI'!R17","v":""},{"$f":"TEST!R17","v":""},{"$f":"ÖDEV!X17","v":""},{"$f":"'DERSE KATILIM'!T17","v":""},{"$f":"DAVRANIŞ!S17","v":""},{"$error":"#REF!"},null,null,null,null,null,null,null,0]
[{"$f":"'SINIF LİSTESİ'!A18","v":459},{"$f":"'SINIF LİSTESİ'!B18","v":"AZİZ"},{"$f":"NOT!#REF!","v":{"$error":"#REF!"}},{"$f":"'DENEME SINAVI'!R18","v":""},{"$f":"TEST!R18","v":""},{"$f":"ÖDEV!X18","v":""},{"$f":"'DERSE KATILIM'!T18","v":""},{"$f":"DAVRANIŞ!S18","v":""},{"$error":"#REF!"},null,null,null,null,null,null,null,0]
[{"$f":"'SINIF LİSTESİ'!A19","v":462},{"$f":"'SINIF LİSTESİ'!B19","v":"HÜMEYSANUR"},{"$f":"NOT!#REF!","v":{"$error":"#REF!"}},{"$f":"'DENEME SINAVI'!R19","v":""},{"$f":"TEST!R19","v":""},{"$f":"ÖDEV!X19","v":""},{"$f":"'DERSE KATILIM'!T19","v":""},{"$f":"DAVRANIŞ!S19","v":""},{"$error":"#REF!"},null,null,null,null,null,null,null,0]
[{"$f":"'SINIF LİSTESİ'!A20","v":517},{"$f":"'SINIF LİSTESİ'!B20","v":"HAYRUNNİSA"},{"$f":"NOT!#REF!","v":{"$error":"#REF!"}},{"$f":"'DENEME SINAVI'!R20","v":""},{"$f":"TEST!R20","v":""},{"$f":"ÖDEV!X20","v":""},{"$f":"'DERSE KATILIM'!T20","v":""},{"$f":"DAVRANIŞ!S20","v":""},{"$error":"#REF!"},null,null,null,null,null,null,null,0]
[{"$f":"'SINIF LİSTESİ'!A21","v":542},{"$f":"'SINIF LİSTESİ'!B21","v":"NİMETULLAH"},{"$f":"NOT!#REF!","v":{"$error":"#REF!"}},{"$f":"'DENEME SINAVI'!R21","v":""},{"$f":"TEST!R21","v":""},{"$f":"ÖDEV!X21","v":""},{"$f":"'DERSE KATILIM'!T21","v":""},{"$f":"DAVRANIŞ!S21","v":""},{"$error":"#REF!"},null,null,null,null,null,null,null,0]
[{"$f":"'SINIF LİSTESİ'!A22","v":544},{"$f":"'SINIF LİSTESİ'!B22","v":"AYCAN"},{"$f":"NOT!#REF!","v":{"$error":"#REF!"}},{"$f":"'DENEME SINAVI'!R22","v":""},{"$f":"TEST!R22","v":""},{"$f":"ÖDEV!X22","v":""},{"$f":"'DERSE KATILIM'!T22","v":""},{"$f":"DAVRANIŞ!S22","v":""},{"$error":"#REF!"},null,null,null,null,null,null,null,0]
[{"$f":"'SINIF LİSTESİ'!A23","v":558},{"$f":"'SINIF LİSTESİ'!B23","v":"ELİF"},{"$f":"NOT!#REF!","v":{"$error":"#REF!"}},{"$f":"'DENEME SINAVI'!R23","v":""},{"$f":"TEST!R23","v":""},{"$f":"ÖDEV!X23","v":""},{"$f":"'DERSE KATILIM'!T23","v":""},{"$f":"DAVRANIŞ!S23","v":""},{"$error":"#REF!"},null,null,null,null,null,null,null,0]
[{"$f":"'SINIF LİSTESİ'!A24","v":585},{"$f":"'SINIF LİSTESİ'!B24","v":"AHMET"},{"$f":"NOT!#REF!","v":{"$error":"#REF!"}},{"$f":"'DENEME SINAVI'!R24","v":""},{"$f":"TEST!R24","v":""},{"$f":"ÖDEV!X24","v":""},{"$f":"'DERSE KATILIM'!T24","v":""},{"$f":"DAVRANIŞ!S24","v":""},{"$error":"#REF!"},null,null,null,null,null,null,null,0]
[{"$f":"'SINIF LİSTESİ'!A25","v":604},{"$f":"'SINIF LİSTESİ'!B25","v":"AZAM"},{"$f":"NOT!#REF!","v":{"$error":"#REF!"}},{"$f":"'DENEME SINAVI'!R25","v":""},{"$f":"TEST!R25","v":""},{"$f":"ÖDEV!X25","v":""},{"$f":"'DERSE KATILIM'!T25","v":""},{"$f":"DAVRANIŞ!S25","v":""},{"$error":"#REF!"},null,null,null,null,null,null,null,0]
[{"$f":"'SINIF LİSTESİ'!A26","v":644},{"$f":"'SINIF LİSTESİ'!B26","v":"DEMETNUR"},{"$f":"NOT!#REF!","v":{"$error":"#REF!"}},{"$f":"'DENEME SINAVI'!R26","v":""},{"$f":"TEST!R26","v":""},{"$f":"ÖDEV!X26","v":""},{"$f":"'DERSE KATILIM'!T26","v":""},{"$f":"DAVRANIŞ!S26","v":""},{"$error":"#REF!"},null,null,null,null,null,null,null,0]
[{"$f":"'SINIF LİSTESİ'!A27","v":696},{"$f":"'SINIF LİSTESİ'!B27","v":"ELİF"},{"$f":"NOT!#REF!","v":{"$error":"#REF!"}},{"$f":"'DENEME SINAVI'!R27","v":""},{"$f":"TEST!R27","v":""},{"$f":"ÖDEV!X27","v":""},{"$f":"'DERSE KATILIM'!T27","v":""},{"$f":"DAVRANIŞ!S27","v":""},{"$error":"#REF!"},null,null,null,null,null,null,null,0]
[{"$f":"'SINIF LİSTESİ'!A28","v":716},{"$f":"'SINIF LİSTESİ'!B28","v":"ERKAN"},{"$f":"NOT!#REF!","v":{"$error":"#REF!"}},{"$f":"'DENEME SINAVI'!R28","v":""},{"$f":"TEST!R28","v":""},{"$f":"ÖDEV!X28","v":""},{"$f":"'DERSE KATILIM'!T28","v":""},{"$f":"DAVRANIŞ!S28","v":""},{"$error":"#REF!"},null,null,null,null,null,null,null,0]
[{"$f":"'SINIF LİSTESİ'!A29","v":933},{"$f":"'SINIF LİSTESİ'!B29","v":"NİSA"},{"$f":"NOT!#REF!","v":{"$error":"#REF!"}},{"$f":"'DENEME SINAVI'!R29","v":""},{"$f":"TEST!R29","v":""},{"$f":"ÖDEV!X29","v":""},{"$f":"'DERSE KATILIM'!T29","v":""},{"$f":"DAVRANIŞ!S29","v":""},{"$error":"#REF!"},null,null,null,null,null,null,null,0]
[{"$f":"'SINIF LİSTESİ'!A30","v":5000},{"$f":"'SINIF LİSTESİ'!B30","v":"ASUDE"},{"$f":"NOT!#REF!","v":{"$error":"#REF!"}},{"$f":"'DENEME SINAVI'!R30","v":""},{"$f":"TEST!R30","v":""},{"$f":"ÖDEV!X30","v":""},{"$f":"'DERSE KATILIM'!T30","v":""},{"$f":"DAVRANIŞ!S30","v":""},{"$error":"#REF!"},null,null,null,null,null,null,null,0]
[]
[]
[]
[]
[]
[]
[]
[]
[]
[]
[]
[]
[]
[]
[]
[]
[]
[]
[]
[]
[]
[]
[]
[]
[]
[]
[]
[]
[null,null,null,null,null,null,null,null,null,null,null,null,null,null,null,584.19999999999993]
[null,null,null,null,null,null,null,null,null,null,null,null,null,null,null,519.73333333333335]
[null,null,null,null,null,null,null,null,null,null,null,null,null,null,null,664.40000000000009]
[null,null,null,null,null,null,null,null,null,null,null,null,null,null,null,9.5333333333333332]
[null,null,null,null,null,null,null,null,null,null,null,null,null,null,null,74]
[]
[]
[]
[]
[]
[]
[]
[]
[]
[]
[]
[]
[]
[]
[]
[]
[]
[]
[]
[]
[]
[]
[]
[null,null,null,null,null,null,null,null,null,null,null,null,null,null,null,584.19999999999993]
[null,null,null,null,null,null,null,null,null,null,null,null,null,null,null,519.73333333333335]
[null,null,null,null,null,null,null,null,null,null,null,null,null,null,null,664.40000000000009]
[null,null,null,null,null,null,null,null,null,null,null,null,null,null,null,9.5333333333333332]
[null,null,null,null,null,null,null,null,null,null,null,null,null,null,null,74]
[]
[]
[]
[]
[]
[]
[]
[]
[]
[]
[]
[]
[]
[]
[]
[]
[]
[]
[]
[]
[]
[]
[]
[null,null,null,null,null,null,null,null,null,null,null,null,null,null,null,584.19999999999993]
[null,null,null,null,null,null,null,null,null,null,null,null,null,null,null,519.73333333333335]
[null,null,null,null,null,null,null,null,null,null,null,null,null,null,null,664.40000000000009]
[null,null,null,null,null,null,null,null,null,null,null,null,null,null,null,9.5333333333333332]
[null,null,null,null,null,null,null,null,null,null,null,null,null,null,null,74]
[]
[]
[]
[]
[]
[]
[]
[]
[]
[]
[]
[]
[]
[]
[]
[]
[]
[]
[]
[]
[]
[]
[]
[null,null,null,null,null,null,null,null,null,null,null,null,null,null,null,584.19999999999993]
[null,null,null,null,null,null,null,null,null,null,null,null,null,null,null,519.73333333333335]
[null,null,null,null,null,null,null,null,null,null,null,null,null,null,null,664.40000000000009]
[null,null,null,null,null,null,null,null,null,null,null,null,null,null,null,9.5333333333333332]
[null,null,null,null,null,null,null,null,null,null,null,null,null,null,null,74]
[]
[]
[]
[]
[]
[]
[]
[]
[]
[]
[]
[]
[]
[]
[]
[]
[]
[]
[]
[]
[]
[]
[]
[null,null,null,null,null,null,null,null,null,null,null,null,null,null,null,584.19999999999993]
[null,null,null,null,null,null,null,null,null,null,null,null,null,null,null,519.73333333333335]
[null,null,null,null,null,null,null,null,null,null,null,null,null,null,null,664.40000000000009]
[null,null,null,null,null,null,null,null,null,null,null,null,null,null,null,9.5333333333333332]
[null,null,null,null,null,null,null,null,null,null,null,null,null,null,null,74]
[]
[]
[]
[]
[]
[]
[]
[]
[]
[]
[]
[]
[]
[]
[]
[]
[]
[]
[]
[]
[]
[]
[]
[null,null,null,null,null,null,null,null,null,null,null,null,null,null,null,584.19999999999993]
[null,null,null,null,null,null,null,null,null,null,null,null,null,null,null,519.73333333333335]
[null,null,null,null,null,null,null,null,null,null,null,null,null,null,null,664.40000000000009]
[null,null,null,null,null,null,null,null,null,null,null,null,null,null,null,9.5333333333333332]
[null,null,null,null,null,null,null,null,null,null,null,null,null,null,null,74]
[]
[]
[]
[]
[]
[]
[]
[]
[]
[]
[]
[]
[]
[]
[]
[]
[]
[]
[]
[]
[]
[]
[]
[null,null,null,null,null,null,null,null,null,null,null,null,null,null,null,584.19999999999993]
[null,null,null,null,null,null,null,null,null,null,null,null,null,null,null,519.73333333333335]
[null,null,null,null,null,null,null,null,null,null,null,null,null,null,null,664.40000000000009]
[null,null,null,null,null,null,null,null,null,null,null,null,null,null,null,9.5333333333333332]
[null,null,null,null,null,null,null,null,null,null,null,null,null,null,null,74]
[]
[]
[]
[]
[]
[]
[]
[]
[]
[]
[]
[]
[]
[]
[]
[]
[]
[]
[]
[]
[]
[]
[]
[null,null,null,null,null,null,null,null,null,null,null,null,null,null,null,584.19999999999993]
[null,null,null,null,null,null,null,null,null,null,null,null,null,null,null,519.73333333333335]
[null,null,null,null,null,null,null,null,null,null,null,null,null,null,null,664.40000000000009]
[null,null,null,null,null,null,null,null,null,null,null,null,null,null,null,9.5333333333333332]
[null,null,null,null,null,null,null,null,null,null,null,null,null,null,null,74]
[]
[]
[]
[]
[]
[]
[]
[]
[]
[]
[]
[]
[]
[]
[]
[]
[]
[]
[]
[]
[]
[]
[]
[null,null,null,null,null,null,null,null,null,null,null,null,null,null,null,584.19999999999993]
[null,null,null,null,null,null,null,null,null,null,null,null,null,null,null,519.73333333333335]
[null,null,null,null,null,null,null,null,null,null,null,null,null,null,null,664.40000000000009]
[null,null,null,null,null,null,null,null,null,null,null,null,null,null,null,9.5333333333333332]
[null,null,null,null,null,null,null,null,null,null,null,null,null,null,null,74]
[]
[]
[]
[]
[]
[]
[]
[]
[]
[]
[]
[]
[]
[]
[]
[]
[]
[]
[]
[]
[]
[]
[]
[null,null,null,null,null,null,null,null,null,null,null,null,null,null,null,584.19999999999993]
[null,null,null,null,null,null,null,null,null,null,null,null,null,null,null,519.73333333333335]
[null,null,null,null,null,null,null,null,null,null,null,null,null,null,null,664.40000000000009]
[null,null,null,null,null,null,null,null,null,null,null,null,null,null,null,9.5333333333333332]
[null,null,null,null,null,null,null,null,null,null,null,null,null,null,null,74]
[]
[]
[]
[]
[]
[]
[]
[]
[]
[]
[]
[]
[]
[]
[]
[]
[]
[]
[]
[]
[]
[]
[]
[null,null,null,null,null,null,null,null,null,null,null,null,null,null,null,584.19999999999993]
[null,null,null,null,null,null,null,null,null,null,null,null,null,null,null,519.73333333333335]
[null,null,null,null,null,null,null,null,null,null,null,null,null,null,null,664.40000000000009]
[null,null,null,null,null,null,null,null,null,null,null,null,null,null,null,9.5333333333333332]
[null,null,null,null,null,null,null,null,null,null,null,null,null,null,null,74]
[]
[]
[]
[]
[]
[]
[]
[]
[]
[]
[]
[]
[]
[]
[]
[]
[]
[]
[]
[]
[]
[]
[]
[null,null,null,null,null,null,null,null,null,null,null,null,null,null,null,584.19999999999993]
[null,null,null,null,null,null,null,null,null,null,null,null,null,null,null,519.73333333333335]
[null,null,null,null,null,null,null,null,null,null,null,null,null,null,null,664.40000000000009]
[null,null,null,null,null,null,null,null,null,null,null,null,null,null,null,9.5333333333333332]
[null,null,null,null,null,null,null,null,null,null,null,null,null,null,null,74]
[]
[]
[]
[]
[]
[]
[]
[]
[]
[]
[]
[]
[]
[]
[]
[]
[]
[]
[]
[]
[]
[]
[]
[null,null,null,null,null,null,null,null,null,null,null,null,null,null,null,584.19999999999993]
[null,null,null,null,null,null,null,null,null,null,null,null,null,null,null,519.73333333333335]
[null,null,null,null,null,null,null,null,null,null,null,null,null,null,null,664.40000000000009]
[null,null,null,null,null,null,null,null,null,null,null,null,null,null,null,9.5333333333333332]
[null,null,null,null,null,null,null,null,null,null,null,null,null,null,null,74]
[]
[]
[]
[]
[]
[]
[]
[]
[]
[]
[]
[]
[]
[]
[]
[]
[]
[]
[]
[]
[]
[]
[]
[null,null,null,null,null,null,null,null,null,null,null,null,null,null,null,584.19999999999993]
[null,null,null,null,null,null,null,null,null,null,null,null,null,null,null,519.73333333333335]
[null,null,null,null,null,null,null,null,null,null,null,null,null,null,null,664.40000000000009]
[null,null,null,null,null,null,null,null,null,null,null,null,null,null,null,9.5333333333333332]
[null,null,null,null,null,null,null,null,null,null,null,null,null,null,null,74]
[]
[]
[]
[]
[]
[]
[]
[]
[]
[]
[]
[]
[]
[]
[]
[]
[]
[]
[]
[]
[]
[]
[]
[null,null,null,null,null,null,null,null,null,null,null,null,null,null,null,584.19999999999993]
[null,null,null,null,null,null,null,null,null,null,null,null,null,null,null,519.73333333333335]
[null,null,null,null,null,null,null,null,null,null,null,null,null,null,null,664.40000000000009]
[null,null,null,null,null,null,null,null,null,null,null,null,null,null,null,9.5333333333333332]
[null,null,null,null,null,null,null,null,null,null,null,null,null,null,null,74]
[]
[]
[]
[]
[]
[]
[]
[]
[]
[]
[]
[]
[]
[]
[]
[]
[]
[]
[]
[]
[]
[]
[]
[null,null,null,null,null,null,null,null,null,null,null,null,null,null,null,584.19999999999993]
[null,null,null,null,null,null,null,null,null,null,null,null,null,null,null,519.73333333333335]
[null,null,null,null,null,null,null,null,null,null,null,null,null,null,null,664.40000000000009]
[null,null,null,null,null,null,null,null,null,null,null,null,null,null,null,9.5333333333333332]
[null,null,null,null,null,null,null,null,null,null,null,null,null,null,null,74]
[]
[]
[]
[]
[]
[]
[]
[]
[]
[]
[]
[]
[]
[]
[]
[]
[]
[]
[]
[]
[]
[]
[]
[null,null,null,null,null,null,null,null,null,null,null,null,null,null,null,584.19999999999993]
[null,null,null,null,null,null,null,null,null,null,null,null,null,null,null,519.73333333333335]
[null,null,null,null,null,null,null,null,null,null,null,null,null,null,null,664.40000000000009]
[null,null,null,null,null,null,null,null,null,null,null,null,null,null,null,9.5333333333333332]
[null,null,null,null,null,null,null,null,null,null,null,null,null,null,null,74]
[]
[]
[]
[]
[]
[]
[]
[]
[]
[]
[]
[]
[]
[]
[]
[]
[]
[]
[]
[]
[]
[]
[]
[null,null,null,null,null,null,null,null,null,null,null,null,null,null,null,584.19999999999993]
[null,null,null,null,null,null,null,null,null,null,null,null,null,null,null,519.73333333333335]
[null,null,null,null,null,null,null,null,null,null,null,null,null,null,null,664.40000000000009]
[null,null,null,null,null,null,null,null,null,null,null,null,null,null,null,9.5333333333333332]
[null,null,null,null,null,null,null,null,null,null,null,null,null,null,null,74]
[]
[]
[]
[]
[]
[]
[]
[]
[]
[]
[]
[]
[]
[]
[]
[]
[]
[]
[]
[]
[]
[]
[]
[null,null,null,null,null,null,null,null,null,null,null,null,null,null,null,584.19999999999993]
[null,null,null,null,null,null,null,null,null,null,null,null,null,null,null,519.73333333333335]
[null,null,null,null,null,null,null,null,null,null,null,null,null,null,null,664.40000000000009]
[null,null,null,null,null,null,null,null,null,null,null,null,null,null,null,9.5333333333333332]
[null,null,null,null,null,null,null,null,null,null,null,null,null,null,null,74]
[]
[]
[]
[]
[]
[]
[]
[]
[]
[]
[]
[]
[]
[]
[]
[]
[]
[]
[]
[]
[]
[]
[]
[null,null,null,null,null,null,null,null,null,null,null,null,null,null,null,584.19999999999993]
[null,null,null,null,null,null,null,null,null,null,null,null,null,null,null,519.73333333333335]
[null,null,null,null,null,null,null,null,null,null,null,null,null,null,null,664.40000000000009]
[null,null,null,null,null,null,null,null,null,null,null,null,null,null,null,9.5333333333333332]
[null,null,null,null,null,null,null,null,null,null,null,null,null,null,null,74]
[]
[]
[]
[]
[]
[]
[]
[]
[]
[]
[]
[]
[]
[]
[]
[]
[]
[]
[]
[]
[]
[]
[]
[null,null,null,null,null,null,null,null,null,null,null,null,null,null,null,584.19999999999993]
[null,null,null,null,null,null,null,null,null,null,null,null,null,null,null,519.73333333333335]
[null,null,null,null,null,null,null,null,null,null,null,null,null,null,null,664.40000000000009]
[null,null,null,null,null,null,null,null,null,null,null,null,null,null,null,9.5333333333333332]
[null,null,null,null,null,null,null,null,null,null,null,null,null,null,null,74]
[]
[]
[]
[]
[]
[]
[]
[]
[]
[]
[]
[]
[]
[]
[]
[]
[]
[]
[]
[]
[]
[]
[]
[null,null,null,null,null,null,null,null,null,null,null,null,null,null,null,584.19999999999993]
[null,null,null,null,null,null,null,null,null,null,null,null,null,null,null,519.73333333333335]
[null,null,null,null,null,null,null,null,null,null,null,null,null,null,null,664.40000000000009]
[null,null,null,null,null,null,null,null,null,null,null,null,null,null,null,9.5333333333333332]
[null,null,null,null,null,null,null,null,null,null,null,null,null,null,null,74]
[]
[]
[]
[]
[]
[]
[]
[]
[]
[]
[]
[]
[]
[]
[]
[]
[]
[]
[]
[]
[]
[]
[]
[null,null,null,null,null,null,null,null,null,null,null,null,null,null,null,584.19999999999993]
[null,null,null,null,null,null,null,null,null,null,null,null,null,null,null,519.73333333333335]
[null,null,null,null,null,null,null,null,null,null,null,null,null,null,null,664.40000000000009]
[null,null,null,null,null,null,null,null,null,null,null,null,null,null,null,9.5333333333333332]
[null,null,null,null,null,null,null,null,null,null,null,null,null,null,null,74]
[]
[]
[]
[]
[]
[]
[]
[]
[]
[]
[]
[]
[]
[]
[]
[]
[]
[]
[]
[]
[]
[]
[]
[null,null,null,null,null,null,null,null,null,null,null,null,null,null,null,584.19999999999993]
[null,null,null,null,null,null,null,null,null,null,null,null,null,null,null,519.73333333333335]
[null,null,null,null,null,null,null,null,null,null,null,null,null,null,null,664.40000000000009]
[null,null,null,null,null,null,null,null,null,null,null,null,null,null,null,9.5333333333333332]
[null,null,null,null,null,null,null,null,null,null,null,null,null,null,null,74]
[]
[]
[]
[]
[]
[]
[]
[]
[]
[]
[]
[]
[]
[]
[]
[]
[]
[]
[]
[]
[]
[]
[]
[null,null,null,null,null,null,null,null,null,null,null,null,null,null,null,584.19999999999993]
[null,null,null,null,null,null,null,null,null,null,null,null,null,null,null,519.73333333333335]
[null,null,null,null,null,null,null,null,null,null,null,null,null,null,null,664.40000000000009]
[null,null,null,null,null,null,null,null,null,null,null,null,null,null,null,9.5333333333333332]
[null,null,null,null,null,null,null,null,null,null,null,null,null,null,null,74]
[]
[]
[]
[]
[]
[]
[]
[]
[]
[]
[]
[]
[]
[]
[]
[]
[]
[]
[]
[]
[]
[]
[]
[null,null,null,null,null,null,null,null,null,null,null,null,null,null,null,584.19999999999993]
[null,null,null,null,null,null,null,null,null,null,null,null,null,null,null,519.73333333333335]
[null,null,null,null,null,null,null,null,null,null,null,null,null,null,null,664.40000000000009]
[null,null,null,null,null,null,null,null,null,null,null,null,null,null,null,9.5333333333333332]
[null,null,null,null,null,null,null,null,null,null,null,null,null,null,null,74]

{"sheet":"ÖĞRENCİ SIRALA","index":10,"n_rows":29,"n_cols":3,"rows_kept":29,"cut":false,"hidden":false,"merged":[[0,0,0,2]]}
["ÖĞRENCİ BAŞARI SIRALAMASI"]
["SIRA","ADI SOYADI","PUAN"]
[1,"MERT ATAKAN",318.66666666666669]
[2,"MEHMET SAN",312.33333333333337]
[3,"SADİ DİYE BİRİ",293.66666666666669]
[4,"ALİ ENDER",282.86598639455786]
[5,"AHMET KURAL",269.5]
[6,"TARIK EFE",226.5]
[7,"MURATCEMŞİR",224.5]
[8,"SİNEM ÖZSAN",214]
[9,"MURAT ÇELİK",168.6]
[10,0]
[11,0]
[12,0]
[13,0]
[14,0]
[15,0]
[16,0]
[17,0]
[18,0]
[19,0]
[20,0]
[21,0]
[22,0]
[23,0]
[24,0]
[25,0]
[26,0]
[27,0]

{"sheet":"ogrencitakip.4t.com","index":11,"n_rows":0,"n_cols":0,"rows_kept":0,"cut":false,"hidden":false,"merged":[]}